Workbook

Sheet JMF1
A1: STATE OF TENNESSEE ASPHALT JOB MIX FORMULA
A2: V1. 3-RAPs
A3: Project Ref. No. | F3: Date Signed
A4: Project No. | F4: Region
A5: Contract No. | F5: County
A6: Contractor | F6: Date of Letting | J6: 2005-02-10
A7: State Route No. | F7: Roadway Surface
A8: Make of Plant | F8: Location of Plant
A9: Hot-mix Producer
A10: Producer Address
A12: Type | B12: =VLOOKUP(Stuff!C1,Stuff!A2:S16,19) -> ACS-HM | C12: =VLOOKUP([3]Stuff!#REF!,[3]Stuff!$A$2:$B$22,2) ->  | D12: Mix | E12: =VLOOKUP(Stuff!C1,Stuff!A2:B17,2)&" "&VLOOKUP(Stuff!AB17,Stuff!X18:Y28,2) -> OGFC | H12: Item
A14: Serial No.: | F14: Design No.:
A16: Material | C16: Size or Grade | E16: Producer and Location | I16: Percent Used
A17: =VLOOKUP(Stuff!AH78,Stuff!$AC$30:$AD$63,2) -> 0 | C17: =VLOOKUP(Stuff!AI78,Stuff!AF$64:AG$71,2) -> 0 | I17: =$B$44*(100-$G$25)/100 -> 93 | J17: =E31*(100-D32)/100 -> 0
A18: =VLOOKUP(Stuff!AH79,Stuff!$AC$30:$AD$63,2) -> 0 | C18: =VLOOKUP(Stuff!AI79,Stuff!AF$64:AG$71,2) -> 0 | I18: =$C$44*(100-$G$25)/100 -> 0 | J18: =E32*(100-D33)/100 -> 0
A19: =VLOOKUP(Stuff!AH80,Stuff!$AC$30:$AD$63,2) -> 0 | C19: =VLOOKUP(Stuff!AI80,Stuff!AF$64:AG$71,2) -> 0 | I19: =$D$44*(100-$G$25)/100 -> 0 | J19: =E33*(100-D34)/100 -> 
A20: =VLOOKUP(Stuff!AH81,Stuff!$AC$30:$AD$63,2) -> 0 | C20: =VLOOKUP(Stuff!AI81,Stuff!AF$64:AG$71,2) -> 0 | I20: =$E$44*(100-$G$25)/100 -> 0 | J20: =E34*(100-D35)/100 -> 0
A21: =VLOOKUP(Stuff!AH82,Stuff!$AC$30:$AD$63,2) -> 0 | C21: =VLOOKUP(Stuff!AI82,Stuff!AF$64:AG$71,2) -> 0 | I21: =$F$44*(100-$G$25)/100 -> 0 | J21: =E35*(100-D36)/100 -> 0
A22: =VLOOKUP(Stuff!AH83,Stuff!$AC$30:$AD$63,2) -> 0 | C22: =VLOOKUP(Stuff!AI83,Stuff!AF$64:AG$76,2) -> 0 | I22: =IF(C25=0,G44*(100-G25)/100,((G44*(100-G25)/(100-C25)))) -> 0 | J22: =J35*(100-D37)/100 -> 0
A23: =VLOOKUP(Stuff!AH84,Stuff!$AC$30:$AD$63,2) -> 0 | C23: =VLOOKUP(Stuff!AI84,Stuff!AF$64:AG$76,2) -> 0 | I23: =IF(C26=0,H44*(100-G25)/100,((H44*(100-G25)/(100-C26)))) -> 0 | J23: =IF(I37=0,I33*(100-D34)/100,((I33*(100-D34)/(100-I37)))) -> 
A24: Asphalt Cement | C24: =(VLOOKUP(Stuff!AB17,Stuff!X18:Z28,3)) -> 0 | E24: =Terminals!D1 -> 0 | I24: =IF(AND(C25=0,C26=0),G25,(IF(AND(C25<>0,C26=0),G25-I22*C25/100,(IF(AND(C25=0,C26<>0),G25-(I23*C26/100),G25-(I22*C25/100)-(I23*C26/100)))))) -> 7 | J24: =IF(I37=0,D34,D34-I33*I37/100) -> T.S.R.:
A25: Percent AC in RAP1: | D25: Optimum AC Content: | G25: 7 | H25: Total | I25: =SUM(I17:I24) -> 100
A26: Percent AC in RAP2:
A27: Anti-Strip Additive: | G27: Dosage:
A28: AC Contribution: | C28: Virgin AC | D28: =I24 -> 7 | E28: RAP AC | F28: =G25-I24 -> 0 | G28: Percent Virgin AC: | I28: =(I24/G25*100) -> 100
A29: Asphalt Sp. Gravity: | C29: 1.032 | F29: Dust to Asphalt Ratio:
A31: % Fracture Face on CA: | F31: % Glassy Particles on CA:
A32: Theo.Gravity of RAP: | F32: Eff. Gravity of Agg:
A34: Theo. Gravity of Mix: | D34: T.S.R.: | G34: Lbs/Ft3: | I34: =(62.4*C34) -> 0
A35: L.O.I.: | C35: 5 | F35: Ignition Oven Corr. Factor: | I35: 0.45
A36: ADT | C36: Log Miles | E36: Beginning: | H36: Ending:
A37: Lab Temperature | F37: Plant Temperature
A38: Mixing Temperature (± 5 °F): | F38: Mixing Temp Range(°F): | I38: =IF(AND((OR(Stuff!C1=3,Stuff!C1=4)),(OR(Stuff!AB17=2,Stuff!AB17=3,Stuff!AB17=7,Stuff!AB17=8))),"225°F ≤ T ≤ 275°F",IF(OR(Stuff!C1=3,Stuff!C1=4),"275°F ≤ T ≤ 330°F",VLOOKUP(Stuff!AB17,Stuff!X18:AA28,4))) -> 0
A39: Lab Compaction Temp (± 5 °F): | F39: Delivery Temperature(°F): | I39: =IF(AND((OR(Stuff!C1=3,Stuff!C1=4)),(OR(Stuff!AB17=2,Stuff!AB17=3,Stuff!AB17=7,Stuff!AB17=8))),"225°F ≤ T ≤ 275°F",IF(OR(Stuff!C1=3,Stuff!C1=4),"275°F ≤ T ≤ 330°F",VLOOKUP(Stuff!AB17,Stuff!X18:AA28,4))) -> 0
B41: Percents Used
B42: =A17 -> 0 | C42: =A18 -> 0 | D42: =A19 -> 0 | E42: =A20 -> 0 | F42: =A21 -> 0 | G42: =A22 -> 0 | H42: =A23 -> 0
A43: Sieve | I43: % Req. | J43: Design
A44: Size | B44: 100 | I44: =SUM(B44:H44) -> 100 | J44: Range
A45: 2" | I45: =ROUND((B45*$B$44+C45*$C$44+D45*$D$44+E45*$E$44+F45*$F$44+G45*$G$44+H45*$H$44)/100,0) -> 0 | J45: =IF(Stuff!$C$1=0,"",VLOOKUP(Stuff!$C$1,Stuff!$A$2:$R$16,4)) -> 0
A46: 1.5" | I46: 0 | J46: =IF(Stuff!$C$1=0,"",VLOOKUP(Stuff!$C$1,Stuff!$A$2:$R$17,5)) -> 0
A47: 1.25" | B47: 50 | I47: 50 | J47: =IF(Stuff!$C$1=0,"",VLOOKUP(Stuff!$C$1,Stuff!$A$2:$R$17,6)) -> 0
A48: 1" | B48: 50 | I48: 50 | J48: =IF(Stuff!$C$1=0,"",VLOOKUP(Stuff!$C$1,Stuff!$A$2:$R$17,7)) -> 0
A49: 3/4" | B49: 50 | I49: 50 | J49: =IF(Stuff!$C$1=0,"",VLOOKUP(Stuff!$C$1,Stuff!$A$2:$R$17,8)) -> 100
A50: 5/8" | B50: 50 | I50: 50 | J50: =IF(Stuff!$C$1=0,"",VLOOKUP(Stuff!$C$1,Stuff!$A$2:$R$17,9)) -> 0
A51: 1/2" | B51: 48 | I51: 48 | J51: =IF(Stuff!$C$1=0,"",VLOOKUP(Stuff!$C$1,Stuff!$A$2:$R$17,10)) -> 85-100
A52: 3/8" | B52: 48 | I52: 48 | J52: =IF(Stuff!$C$1=0,"",VLOOKUP(Stuff!$C$1,Stuff!$A$2:$R$17,11)) -> 55-75
A53: No.4 | B53: 48 | I53: 48 | J53: =IF(Stuff!$C$1=0,"",VLOOKUP(Stuff!$C$1,Stuff!$A$2:$R$17,12)) -> 10-25
A54: No.8 | B54: 37 | I54: 37 | J54: =IF(Stuff!$C$1=0,"",VLOOKUP(Stuff!$C$1,Stuff!$A$2:$R$17,13)) -> 5-10
A55: No.16 | B55: 37 | I55: 37 | J55: =IF(Stuff!$C$1=0,"",VLOOKUP(Stuff!$C$1,Stuff!$A$2:$R$17,14)) -> 0
A56: No.30 | B56: 37 | I56: 37 | J56: =IF(Stuff!$C$1=0,"",VLOOKUP(Stuff!$C$1,Stuff!$A$2:$R$17,15)) -> 0
A57: No.50 | B57: 25 | I57: 25 | J57: =IF(Stuff!$C$1=0,"",VLOOKUP(Stuff!$C$1,Stuff!$A$2:$R$17,16)) -> 0
A58: No.100 | B58: 25 | I58: =ROUND((B58*$B$44+C58*$C$44+D58*$D$44+E58*$E$44+F58*$F$44+G58*$G$44+H58*$H$44)/100,0) -> 25 | J58: =IF(Stuff!$C$1=0,"",VLOOKUP(Stuff!$C$1,Stuff!$A$2:$R$17,17)) -> 0
A59: No.200 | B59: 10 | I59: =ROUND((B59*$B$44+C59*$C$44+D59*$D$44+E59*$E$44+F59*$F$44+G59*$G$44+H59*$H$44)/100,1) -> 10 | J59: =IF(Stuff!$C$1=0,"",VLOOKUP(Stuff!$C$1,Stuff!$A$2:$R$17,18)) -> 2-4
A62: Contractor Lab Tech.
A63: T.D.O.T. Plant Insp. | F63: Title

Sheet Stuff
A1: MIX TYPE | C1: 16 | D1: 2" | E1: 1.5" | F1: 1.25" | G1: 1" | H1: 3/4" | I1: 5/8" | J1: 1/2" | K1: 3/8" | L1: #4 | M1: #8 | N1: #16 | O1: #30 | P1: #50 | Q1: #100 | R1: #200
A2: 1 | U2: Void Range | W2: DAR
A3: 2 | B3: 307-A | D3: 100 | E3: 81-100 | H3: 50-71 | K3: 35-50 | L3: 24-36 | M3: 13-27 | O3: 7-17 | Q3: 0-10 | R3: 0-4.5 | S3: BPMB-HM | T3: 307-A
A4: 3 | B4: 307-AS | D4: 100 | E4: 75-100 | H4: 55-80 | L4: 7-11 | Q4: 0-6 | R4: 0-4.5 | S4: BPMB-HM | T4: 307-AS
A5: 4 | B5: 313-TPB | D5: 100 | E5: 70-100 | H5: 55-80 | L5: 0-11 | Q5: 0-4 | R5: 0-3 | S5: BPMB-HM | T5: 313-TPB | U5: - | V5: -
A6: 5 | B6: 307-BM | G6: 100 | H6: 85-100 | K6: 59-79 | L6: 42-61 | M6: 29-47 | O6: 13-27 | P6: 7-20 | Q6: 4-10 | R6: 0-6.5 | S6: BPMB-HM | T6: 307-BM | U6: 3 | V6: 5.5 | W6: 0.6 - 1.5
A7: 6 | B7: 307-BM2 | F7: 100 | H7: 81-93 | K7: 57-73 | L7: 40-56 | M7: 28-43 | O7: 13-25 | P7: 9-19 | Q7: 6-10 | R7: 2.5-6.5 | S7: BPMB-HM | T7: 307-BM2 | U7: 3 | V7: 5.5 | W7: 0.6 - 1.5
A8: 7 | B8: 307-C | H8: 100 | K8: 70-90 | L8: 39-66 | M8: 23-47 | O8: 10-27 | P8: 8-15 | Q8: 4-8 | R8: 2.5-6.5 | S8: BPMB-HM | T8: 307-C | U8: 3 | V8: 5.5 | W8: 0.6 - 1.5
A9: 8 | B9: 307-CW | H9: 100 | K9: 75-100 | M9: 43-67 | O9: 23-47 | Q9: 4-10 | R9: 2.5-6.5 | S9: BPMB-HM | T9: 307-CW | U9: 3 | V9: 5 | W9: 0.6 - 1.5
A10: 9 | B10: 307-CS | K10: 100 | L10: 89-94 | M10: 53-77 | O10: 23-42 | Q10: 9-18 | R10: 6-13.5 | S10: BPMB-HM | T10: 307-CS | U10: 1 | V10: 5
A11: 10 | B11: 411-D | I11: 100 | J11: 95-100 | K11: 80-93 | L11: 54-76 | M11: 35-57 | O11: 17-29 | P11: 10-18 | Q11: 3-10 | R11: 0-6.5 | S11: ACS-HM | T11: 411-D | U11: 3 | V11: 5.5 | W11: 0.6 - 1.2
A12: 11 | B12: 411-D (low volume) | I12: 100 | J12: 95-100 | K12: 80-93 | L12: 54-76 | M12: 35-57 | O12: 17-29 | P12: 10-18 | Q12: 3-10 | R12: 0-6.5 | S12: ACS-HM | T12: 411-D(low volume) | U12: 2 | V12: 5 | W12: 0.6 - 1.2
A13: 12 | B13: 411-E | I13: 100 | J13: 95-100 | K13: 80-93 | L13: 54-76 | M13: 35-57 | O13: 17-29 | P13: 10-18 | Q13: 3-11 | R13: 0-8 | S13: ACS-HM | T13: 411-E | U13: 3 | V13: 5.5
A14: 13 | B14: 411-E (shoulders) | I14: 100 | J14: 95-100 | K14: 80-93 | L14: 54-76 | M14: 35-57 | O14: 17-29 | P14: 10-18 | Q14: 3-11 | R14: 0-8 | S14: ACS-HM | T14: 411-E(shoulder) | U14: 2 | V14: 5
A15: 14 | B15: 411-TL | K15: 100 | L15: 89-94 | M15: 53-77 | O15: 23-42 | Q15: 9-18 | R15: 6-14 | S15: ACS-HM | T15: 411 TL | U15: 3 | V15: 5.5
A16: 15 | B16: 411-TLD/TLE | J16: 100 | K16: 90-100 | L16: 54-76 | M16: 35-57 | O16: 17-33 | P16: 10-18 | Q16: 3-10 | R16: 4-7 | S16: ACS-HM | T16: 411 TLD | U16: 3 | V16: 5.5
A17: 16 | B17: OGFC | H17: 100 | J17: 85-100 | K17: 55-75 | L17: 10-25 | M17: 5-10 | R17: 2-4 | S17: ACS-HM | T17: 411 OGFC | U17: 20 | X17: ac Grade + RAP | AB17: 1
X18: 1
X19: 2 | Y19: PG 64-22 | Z19: PG 64-22 | AA19: 270ºF ≤ T ≤ 310ºF
X20: 3 | Y20: PG 67-22 | Z20: PG 67-22 | AA20: 270ºF ≤ T ≤ 310ºF
X21: 4 | Y21: PG 70-22 | Z21: PG 70-22 | AA21: 290ºF ≤ T ≤ 330ºF
X22: 5 | Y22: PG 76-22 | Z22: PG 76-22 | AA22: 290ºF ≤ T ≤ 330ºF
X23: 6 | Y23: PG 82-22 | Z23: PG 82-22 | AA23: 290ºF ≤ T ≤ 330ºF
X24: 7 | Y24: w/ RAP PG 64-22 | Z24: PG 64-22 | AA24: 270ºF ≤ T ≤ 310ºF
X25: 8 | Y25: w/ Rap PG 67-22 | Z25: PG 67-22 | AA25: 270ºF ≤ T ≤ 310ºF
X26: 9 | Y26: w/ RAP PG 70-22 | Z26: PG 70-22 | AA26: 290ºF ≤ T ≤ 330ºF
X27: 10 | Y27: w/ RAP PG 76-22 | Z27: PG 76-22 | AA27: 290ºF ≤ T ≤ 330ºF
X28: 11 | Y28: w/ RAP PG 82-22 | Z28: PG 82-22 | AA28: 290ºF ≤ T ≤ 330ºF
AC29: AGGREGATE TYPE 1 | AE29: 7
AC30: 1
AC31: 2 | AD31: #1
AC32: 3 | AD32: #2
AC33: 4 | AD33: #24
AC34: 5 | AD34: #3
AC35: 6 | AD35: #357
AC36: 7 | AD36: #4
AC37: 8 | AD37: #467
AC38: 9 | AD38: #5
AC39: 10 | AD39: #56
AC40: 11 | AD40: #57
AC41: 12 | AD41: #6
AC42: 13 | AD42: #67
AC43: 14 | AD43: #68
AC44: 15 | AD44: #7
AC45: 16 | AD45: #78
AC46: 17 | AD46: D Rock (Limestone)
AC47: 18 | AD47: BM-2 Rock (Limestone)
AC48: 19 | AD48: D Rock (Gravel)
AC49: 20 | AD49: BM-2 Rock (Gravel)
AC50: 21 | AD50: D Rock (Granite)
AC51: 22 | AD51: BM-2 Rock (Gravel)
AC52: 23 | AD52: #8
AC53: 24 | AD53: #89
AC54: 25 | AD54: #9
AC55: 26 | AD55: #10 (Hard)
AC56: 27 | AD56: #10 (Soft)
AC57: 28 | AD57: Manufactured Sand
AC58: 29 | AD58: Natural Sand
AC59: 30 | AD59: Slag
AC60: 31 | AD60: Hydrated Lime
AC61: 32 | AD61: AG Lime
AC62: 33 | AD62: RAP
AC63: 34 | AD63: Baghouse Fines | AF63: AGGREGATE TYPE 2
AF64: 1
AF65: 2 | AG65: Coarse Aggregate
AF66: 3 | AG66: Medium Coarse Aggregate
AF67: 4 | AG67: Screenings
AF68: 5 | AG68: Washed Screenings
AF69: 6 | AG69: Manufactured Sand
AF70: 7 | AG70: Natural Sand
AF71: 8 | AG71: Mineral Filler
AF72: 9 | AG72: Non Processed RAP
AF73: 10 | AG73: Recycled Shingles
AF74: 11 | AG74: Minus 3/4 inch Rap
AF75: 12 | AG75: Minus 1/2 inch Rap
AF76: 13 | AG76: Minus 5/16 inch Rap
AH77: AGGREGATE SELECTIONS
AH78: 1 | AI78: 1
AH79: 1 | AI79: 1
AH80: 1 | AI80: 1
AH81: 1 | AI81: 1
AH82: 1 | AI82: 1
AH83: 1 | AI83: 1
AH84: 1 | AI84: 1
AJ85: Tonnage Range
AJ86: 1
AJ87: 2 | AK87: 0 - 1000
AJ88: 3 | AK88: 1001-2000
AJ89: 4 | AK89: 2001 - 3000
AJ90: 5 | AK90: 3001 - 4000
AL91: 1 | AM91: Strip test
AL92: 1 | AM92: Good
AL93: 2 | AM93: Bad
AN94: 1 | AO94: ASA Calcs
AN95: 1 | AO95: Anti-strip based on virgin A.C
AN96: 2 | AO96: Anti-strip based on total A.C
AP97: 2 | AQ97: nuclear guage sheet dropdown
AP98: 1 | AQ98: 12 (Drop High & Low)
AP99: 2 | AQ99: 10 (Cores or Less)

Sheet Random Number
B1: TDOT RANDOM NUMBER WORKSHEET
B4: Project Ref # | D4: ='JMF1'!C3 -> 0 | K4: Date: | M4: 2017-02-24
B6: Project # | D6: ='JMF1'!C4 -> 0 | K6: Type of Mix: | L6: =[4]JMF1!E10 -> 
B8: Contract # | D8: ='JMF1'!C5 -> 0 | G8: ESTIMATED DAILY PRODUCTION: | M8: 1200
H10: Total Tons of Mix: | M10: ='RECAP SHEET '!I102 -> 2450.69
B11: Sublot # | D11: Sublot | F11: Random | H11: Sample
D12: Size | F12: Number | H12: Point
B14: 1 | D14: =IF(M8="",0,MIN(1000,M8)) -> 1000 | F14: =$P$14 -> 0.3471394907 | H14: =IF(M8=0,"0",D14*F14) -> 347.1394907 | I14: Ton | P14: 0.3471394907
B15: 2 | D15: =MIN(1000,$M$8-D14) -> 200 | F15: =F14^F14 -> 0.6926132574 | H15: =IF(M8=0,"0",D15*F15)+1000 -> 1138.522651 | I15: Ton | P15: 0.8704522647
B16: 3 | D16: =MIN(1000,$M$8-SUM(D14:D15)) -> 0 | F16: =F14*0.9 -> 0.3124255416 | H16: =IF(M8=0,"0",D16*F16)+2000 -> 2000 | I16: Ton | P16: 0.007001209525
B17: 4 | D17: =MIN(1000,$M$8-SUM(D14:D16)) -> 0 | F17: =F14*0.75 -> 0.260354618 | H17: =IF(M8=0,"0",D17*F17)+3000 -> 3000 | I17: Ton | P17: 0.1627289127
J19: Quantity | K19: Number of Sublots
B20: Inspector: | D20: =[4]JMF1!C60 -> 0 | J20: less than 1000 | K20: 1 test
J21: 1001-2000 tons | K21: 2 tests
B22: Title: | D22: =[4]JMF1!G60 -> 0 | J22: 2001-3000 tons | K22: 3 tests
J23: 3001-4000 tons | K23: 4 tests

Sheet Gauge Correction & small quan.
B1: CALIBRATING NUCLEAR DENSITY GAUGE WITH ASPHALT CORES | P1: 2
C3: Ref. No. | D3: ='JMF1'!C3 -> 0 | F3: County | G3: ='JMF1'!H5 -> 0 | H3: Region | I3: ='JMF1'!H4 -> 0 | J3: Date
C5: Mix Des # | D5: ='JMF1'!H14 -> 0 | F5: Contr. No. | G5: ='JMF1'!C5 -> 0 | H5: Type Mix | I5: ='JMF1'!E12 -> OGFC
C7: Gauge No. | F7: Standard Count
C10: A control strip one paver width wide and having an area of at least 400 SY per roller* shall be constructed with an approved bituminous mixture. It shall be compacted until there is no appreciable increase in density (1.0 lbs/cu.ft.) as measured with the nuclear gauge.
C12: NO. OF CORES
F16: 1 | G16: 7 | J16: Min. Size
F17: 2 | G17: 8 | J17: 9' x 400'
C18: Typical test pattern for end | F18: 3 | G18: 9 | J18: 10' x 360'
C19: section combining all rollers | F19: 4 | G19: 10 | J19: 11' x 330' | O19: cores
F20: 5 | H20: 11 | J20: 12' x 300 | O20: Min | P20: =MIN(I26:I37) -> 0 | Q20: core sum | R20: =SUM(I26:I37) -> 0
G21: 6 | H21: 12 | O21: Max | P21: =MAX(I26:I37) -> 0 | Q21: count cores | R21: =COUNTIF(I26:I37,">0") -> 0
O22: Total | P22: =SUM(P20:P21) -> 0
D23: ( 1 ) | E23: ( A ) | F23: ( C ) | G23: ( B ) | H23: Theoretical Density = | L23: lbs/cu.ft. | O23: gauge
B24: Site | C24: Gauge | D24: Density | E24: Core Wt. | F24: Core Wt. | H24: Core * | I24: Density | J24: % | K24: Cores | L24: % H2O ** | O24: =VLOOKUP(P20,A26:D37,4,FALSE) -> 0 | P24: ga.sum | Q24: =SUM(D26:D37) -> 0
B25: No. | C25: Reading | D25: lbs/cu.ft. | E25: (Dry) | F25: (Wet) | G25: (Blot Dry) | H25: Sp. Gr. | I25: lbs./cu.ft. | J25: Density | K25: Depth | L25: Absorbed | O25: =VLOOKUP(P21,A26:D37,4,FALSE) -> 0 | P25: count gauge | Q25: =COUNTIF(D26:D37,">0") -> 0
A26: =I26 -> 0 | B26: 1 | H26: =IF(ISBLANK(E26),,E26/(G26-F26)) -> 0 | I26: =(H26*62.4) -> 0 | J26: =IF(ISBLANK(E26),,I26/$K$23) -> 0 | L26: =IF(ISBLANK(E26),,((G26-E26)/(G26-F26))) -> 0 | O26: =SUM(O24:O25) -> 0
A27: 0 | B27: 2 | H27: =IF(ISBLANK(E27),,E27/(G27-F27)) -> 0 | I27: =(H27*62.4) -> 0 | J27: =IF(ISBLANK(E27),,I27/$K$23) -> 0 | L27: =IF(ISBLANK(E27),,((G27-E27)/(G27-F27))) -> 0
A28: 0 | B28: 3 | H28: 0 | I28: =(H28*62.4) -> 0 | J28: 0 | L28: =IF(ISBLANK(E28),,((G28-E28)/(G28-F28))) -> 0
A29: 0 | B29: 4 | H29: 0 | I29: =(H29*62.4) -> 0 | J29: 0 | L29: 0
A30: 0 | B30: 5 | H30: 0 | I30: =(H30*62.4) -> 0 | J30: 0 | L30: 0
A31: 0 | B31: 6 | H31: 0 | I31: 0 | J31: 0 | L31: 0
A32: 0 | B32: 7 | H32: 0 | I32: 0 | J32: 0 | L32: 0
A33: 0 | B33: 8 | H33: 0 | I33: 0 | J33: 0 | L33: 0
A34: 0 | B34: 9 | H34: 0 | I34: 0 | J34: 0 | L34: 0
A35: 0 | B35: 10 | H35: 0 | I35: 0 | J35: 0 | L35: 0
A36: 0 | B36: 11 | H36: 0 | I36: 0 | J36: 0 | L36: 0
A37: 0 | B37: 12 | H37: 0 | I37: 0 | J37: 0 | L37: 0
C39: Avg. = | D39: =IF(Stuff!AP97=2,$Q$24/$Q$25,(Q24-O26)/10) ->  | E39: lbs./ft.3 | G39: Avg. = | H39: =I39/62.4 ->  | I39: =IF(P1=2,$R$20/$R$21,($R$20-$P$22)/10) ->  | J39: =I39/K23 -> 
B41: NOTE: Nuclear Density Gauge Correction = | G41: + or - | H41: =I39-D39 ->  | I41: lbs./ft.3
H42: (core - | I42: gauge)
B44: * Core Sp. Gr. = | D44: (Wt. Dry)
D45: (Blot Dry)- | E45: (Wt. Water)
B47: Example: | C47: wt. dry | D47: =699grams | F47: Core Sp. Gr. = | H47: 699
C48: water | D48: =385grams | H48: 710 - 385
C49: blot dry | D49: =710grams
G50: Sp. Gr. = | H50: 2.15
F51: B - A | H51: A= | I51: mass in grams of sample in air
B52: ** Percent Water Absorbed by Volume = | F52: B - C | G52: X 100 | H52: B= | I52: mass in grams of SSD specimen in air
H53: C= | I53: mass in grams of sample in water
F56: T.D.O.T Insp. | H56: ='JMF1'!C63 -> 0
F57: Title | H57: ='JMF1'!G63 -> 0

Sheet DUST COATING & FUEL CONT.
C1: Dust Coating Test
A3: At least 1500 gram aggregate sample of plus four material shall be taken from each hot bin,
A4: after drying in a batch plant, or at least 5000 gram aggregate sample of plus four material
A5: shall be taken from material dried in a Dryer Drum plant. The aggregate shall be gently
A6: manipulated on the No. 4 screen to separate it from all free fines. Transfer the aggregate
A7: retained on the No. 4 screen to a tared No. 8 screen and determine its dry weight.
A8: Thoroughly wash the material retained on the No. 8 screen to remove all fines. Dry
A9: the aggregate retained on the No. 8 screen and calculate the percent loss.
C13: BATCH PLANT
A15: Total Wt. of Sample (5000 gram Minimum.)
A16: Must be at least 1500 grams from each bin
A18: Date | B18: Bin No. | C18: % of Agg. | D18: % of | E18: Sample | F18: Dry Weight | G18: Weight | H18: Percent
C19: Used From | D19: Total | E19: wt. From | F19: After Wash | G19: Loss | H19: Loss
C20: This Bin | D20: Sample | E20: Each Bin
A21: 2012-01-12 | B21: 2 | D21: =IF(C21=0,0,(100/$C$24)*C21) -> 0 | E21: =(D21*E15)/100 -> 0
B22: 3 | D22: =IF(C22=0,0,(100/$C$24)*C22) -> 0 | E22: =(D22*E15)/100 -> 0
B23: 4 | D23: =IF(C23=0,0,(100/$C$24)*C23) -> 0 | E23: =(D23*E15)/100 -> 0
B24: Totals | C24: =C21+C22+C23 -> 0 | D24: =D21+D22+D23 -> 0 | E24: =E21+E22+E23 -> 0 | G24: =E24-F24 -> 0 | H24: =IF(E15=0,0,(E24-F24)/E24) -> 0
E25: (1) | F25: (2) | G25: (3)
C31: DRUM MIXER PLANT
A33: 5000 Gram Minimum
C35: (1) | D35: (2) | E35: (3)
A36: Date | C36: Sample | D36: Dry Wt. | E36: Weight | F36: Percent
C37: Weight | D37: After Wash | E37: Loss | F37: Loss
A38: 2010-10-26 | C38: 5122.8 | D38: 5100.2 | E38: =C38-D38 -> 22.6 | F38: =IF(C38=0,0,E38/C38) -> 0.004411649879
A42: Percent Loss = (3) divided by (1) X 100
A44: Maximum loss as defined by section 903-06 (a) and 903-11 (a)
A46: T.D.O.T. Insp. | C46: ='JMF1'!C63 -> 0
A47: Title | C47: ='JMF1'!G63 -> 0
C59: FUEL CONTAMINATION TEST
C61: Visual Observation
C63: Check The One That Applies
A65: Date | B65: 2012-01-10 | C65: Good | E65: Contaminated
A66: Date | C66: Good | E66: Contaminated
A67: Date | C67: Good | E67: Contaminated
A68: Date | C68: Good | E68: Contaminated
A69: Date | C69: Good | E69: Contaminated
A70: Date | C70: Good | E70: Contaminated
A71: Date | C71: Good | E71: Contaminated
A72: Date | C72: Good | E72: Contaminated
A75: T.D.O.T. Insp. | C75: ='JMF1'!C63 -> 0
A76: Title | C76: ='JMF1'!G63 -> 0
A79: REMARKS:

Sheet EXTRACTION
A1: Type Mix | B1: ='JMF1'!E12 -> OGFC | E1: Contract No. | G1: ='JMF1'!C5 -> 0 | K1: Type Mix | L1: ='JMF1'!E12 -> OGFC | O1: Contract No. | Q1: =G1 -> 0
A3: Date | B3: 2010-10-26 | E3: T.D.O.T. Insp. | G3: ='JMF1'!C63 -> 0 | K3: Date | O3: T.D.O.T. Insp. | Q3: =G3 -> 0
G5: (1) | I5: (2) | Q5: (3) | S5: (4)
A6: Weight of Filter Aid Used | G6: 33 | I6: 32.9 | K6: Weight of Filter Aid Used
A7: Weight of Filter Paper | G7: 27 | I7: 27.1 | K7: Weight of Filter Paper
A9: Weight of Mix Sample + Container | G9: 1654.9 | I9: 1544 | K9: Weight of Mix Sample + Container
B10: Wt. Of Container | L10: Wt. Of Container
A11: (1) | B11: Wt. Of Mix sample | G11: =G9-G10 -> 1654.9 | I11: =I9-I10 -> 1544 | K11: (1) | L11: Wt. Of Mix sample | Q11: =Q9-Q10 -> 0 | S11: =S9-S10 -> 0
A13: After Extracting A . C . | K13: After Extracting A . C .
A15: Wt. Of Filter Aid + Filter Paper + (-200) Mtl | G15: 138.1 | I15: 125.4 | K15: Wt. Of Filter Aid + Filter Paper + (-200) Mtl
B16: Wt. Of Filter Aid + Filter Paper | G16: =G6+G7 -> 60 | I16: =I6+I7 -> 60 | L16: Wt. Of Filter Aid + Filter Paper | Q16: =Q6+Q7 -> 0 | S16: =S6+S7 -> 0
A17: (2) | B17: Wt. Of (-200) Mtl. | G17: =G15-G16 -> 78.1 | I17: =I15-I16 -> 65.4 | K17: (2) | L17: Wt. Of (-200) Mtl. | Q17: =Q15-Q16 -> 0 | S17: =S15-S16 -> 0
A19: Weight of Extracted Aggregate + Pan | G19: 1486 | I19: 1393.2 | K19: Weight of Extracted Aggregate + Pan
B20: Wt. Of Pan | L20: Wt. Of Pan
A21: (3) | B21: Wt. Of Extracted Aggregate | G21: =G19-G20 -> 1486 | I21: =I19-I20 -> 1393.2 | K21: (3) | L21: Wt. Of Extracted Aggregate | Q21: =Q19-Q20 -> 0 | S21: =S19-S20 -> 0
A23: (4) | B23: Total Wt. Of Aggregate = (2) + (3) = | G23: =G17+G21 -> 1564.1 | I23: =I17+I21 -> 1458.6 | K23: (4) | L23: Total Wt. Of Aggregate = (2) + (3) = | Q23: =Q17+Q21 -> 0 | S23: =S17+S21 -> 0
A24: (5) | B24: Wt. Of Extracted Asphalt = (1) - (4) = | G24: =G11-G23 -> 90.8 | I24: =I11-I23 -> 85.4 | K24: (5) | L24: Wt. Of Extracted Asphalt = (1) - (4) = | Q24: =Q11-Q23 -> 0 | S24: =S11-S23 -> 0
B26: % A. C. = Weight of Extracted Asphalt | F26: x 100 = | L26: % A. C. = Weight of Extracted Asphalt | P26: x 100 =
B27: Weight of Mix Sample | G27: =IF(G11=0,0,(G24/G11)*100) -> 5.486736359 | I27: =IF(I11=0,0,(I24/I11)*100) -> 5.531088083 | L27: Weight of Mix Sample | Q27: =IF(Q11=0,0,(Q24/Q11)*100) -> 0 | S27: =IF(S11=0,0,(S24/S11)*100) -> 0
D30: SIEVE ANALYSIS | N30: SIEVE ANALYSIS
D31: AASHTO T-30 | N31: AASHTO T-30
B32: (1) | G32: (2) | L32: (3) | Q32: (4)
A33: Sieve | B33: Wt. Ret. | C33: % Ret. | D33: % Pass | F33: Sieve | G33: Wt. Ret. | H33: % Ret. | I33: % Pass | K33: Sieve | L33: Wt. Ret. | M33: % Ret. | N33: % Pass | P33: Sieve | Q33: Wt. Ret. | R33: % Ret. | S33: % Pass
A34: 1 1/2" | B34: 0 | C34: =IF(B34=0,0,B34/$G$23*100) -> 0 | D34: =IF(C34=0,0,100-C34) -> 0 | F34: 1 1/2" | H34: =IF(G34=0,0,G34/$I$23*100) -> 0 | I34: =IF(H34=0,0,100-H34) -> 0 | K34: 1 1/2" | M34: =IF(L34=0,0,L34/$Q$23*100) -> 0 | N34: =IF(M34=0,0,100-M34) -> 0 | P34: 1 1/2" | R34: =IF(Q34=0,0,Q34/$S$23*100) -> 0 | S34: =IF(R34=0,0,100-R34) -> 0
A35: 1 1/4" | B35: 0 | C35: 0 | D35: =IF(C35=0,0,100-C35) -> 0 | F35: 1 1/4" | H35: =IF(G35=0,0,G35/$I$23*100) -> 0 | I35: =IF(H35=0,0,100-H35) -> 0 | K35: 1 1/4" | M35: =IF(L35=0,0,L35/$Q$23*100) -> 0 | N35: =IF(M35=0,0,100-M35) -> 0 | P35: 1 1/4" | R35: =IF(Q35=0,0,Q35/$S$23*100) -> 0 | S35: =IF(R35=0,0,100-R35) -> 0
A36: 1" | B36: 0 | C36: 0 | D36: =IF(C36=0,0,100-C36) -> 0 | F36: 1" | H36: =IF(G36=0,0,G36/$I$23*100) -> 0 | I36: =IF(H36=0,0,100-H36) -> 0 | K36: 1" | M36: =IF(L36=0,0,L36/$Q$23*100) -> 0 | N36: =IF(M36=0,0,100-M36) -> 0 | P36: 1" | R36: =IF(Q36=0,0,Q36/$S$23*100) -> 0 | S36: =IF(R36=0,0,100-R36) -> 0
A37: 3/4" | C37: 0 | D37: =IF(C37=0,0,100-C37) -> 0 | F37: 3/4" | H37: =IF(G37=0,0,G37/$I$23*100) -> 0 | I37: =IF(H37=0,0,100-H37) -> 0 | K37: 3/4" | M37: =IF(L37=0,0,L37/$Q$23*100) -> 0 | N37: =IF(M37=0,0,100-M37) -> 0 | P37: 3/4" | R37: =IF(Q37=0,0,Q37/$S$23*100) -> 0 | S37: =IF(R37=0,0,100-R37) -> 0
A38: 5/8" | B38: 0.01 | C38: 0.0006393453104 | D38: 99.99936065 | F38: 5/8" | G38: 0.01 | H38: 0.0006855889209 | I38: 99.99931441 | K38: 5/8" | M38: 0 | N38: 0 | P38: 5/8" | R38: 0 | S38: 0
A39: 1/2" | B39: 46.8 | C39: 2.992136053 | D39: 97.00786395 | F39: 1/2" | G39: 54.5 | H39: 3.736459619 | I39: 96.26354038 | K39: 1/2" | M39: 0 | N39: 0 | P39: 1/2" | R39: 0 | S39: 0
A40: 3/8" | B40: 257.8 | C40: 16.4823221 | D40: 83.5176779 | F40: 3/8" | G40: 222 | H40: 15.22007404 | I40: 84.77992596 | K40: 3/8" | M40: 0 | N40: 0 | P40: 3/8" | R40: 0 | S40: 0
A41: # 4 | B41: 742.6 | C41: 47.47778275 | D41: 52.52221725 | F41: # 4 | G41: 717.7 | H41: 49.20471685 | I41: 50.79528315 | K41: # 4 | M41: 0 | N41: 0 | P41: # 4 | R41: 0 | S41: 0
A42: # 8 | B42: 925.8 | C42: 59.19058884 | D42: 40.80941116 | F42: # 8 | G42: 884.1 | H42: 60.6129165 | I42: 39.3870835 | K42: # 8 | M42: 0 | N42: 0 | P42: # 8 | R42: 0 | S42: 0
A43: # 30 | B43: 1107.1 | C43: 70.78191931 | D43: 29.21808069 | F43: # 30 | G43: 1042.4 | H43: 71.46578911 | I43: 28.53421089 | K43: # 30 | M43: 0 | N43: 0 | P43: # 30 | R43: 0 | S43: 0
A44: # 50 | B44: 1318.1 | C44: 84.27210536 | D44: 15.72789464 | F44: # 50 | G44: 1238.8 | H44: 84.93075552 | I44: 15.06924448 | K44: # 50 | M44: 0 | N44: 0 | P44: # 50 | R44: 0 | S44: 0
A45: # 100 | B45: 1448.9 | C45: 92.63474202 | D45: 7.365257976 | F45: # 100 | G45: 1361.2 | H45: 93.32236391 | I45: 6.677636089 | K45: # 100 | M45: 0 | N45: 0 | P45: # 100 | R45: 0 | S45: 0
A46: # 200 | B46: 1476.5 | C46: 94.39933508 | D46: 5.600664919 | F46: # 200 | G46: 1385.9 | H46: 95.01576855 | I46: 4.984231455 | K46: # 200 | M46: 0 | N46: 0 | P46: # 200 | R46: 0 | S46: 0
D47: D.A.R. | I47: D.A.R. | N47: D.A.R. | S47: D.A.R.
A49: Total Agg. Wt. = | C49: =G23 -> 1564.1 | D49: =D46/G27 -> 1.020764358 | F49: Total Agg. Wt. = | H49: =I23 -> 1458.6 | I49: =IF(I23=0,0,I46/I27) -> 0.9011303708 | K49: Total Agg. Wt. = | M49: =Q23 -> 0 | N49: =IF(M49=0,0,N46/Q27) -> 0 | P49: Total Agg. Wt. = | R49: =S23 -> 0 | S49: =IF(R49=0,0,S46/S27) -> 0
A51: Fract. Face Count | C51: No. particles | F51: Glassy Particles | H51: total wt.
C52: No. fractured | H52: wt. Glassy
C53: % fractured | D53: =IF(D51=0,0,D52/D51) -> 0 | H53: % Glassy | I53: =IF(I51=0,0,I52/I51) -> 0

Sheet BURNOUT OVEN
C1: WASHED GRADATION FOR IGNITION FURNACE SAMPLES | J1: WASHED GRADATION FOR IGNITION FURNACE SAMPLES | Q1: WASHED GRADATION FOR IGNITION FURNACE SAMPLES | X1: WASHED GRADATION FOR IGNITION FURNACE SAMPLES
B3: (AASHTO T-11 & AASHTO T - 27) | I3: (AASHTO T-11 & AASHTO T - 27) | P3: (AASHTO T-11 & AASHTO T - 27) | W3: (AASHTO T-11 & AASHTO T - 27)
A6: Type Mix | B6: ='JMF1'!E12 -> OGFC | D6: Project No. | E6: ='JMF1'!C4 -> 0 | H6: Type Mix | I6: ='JMF1'!E12 -> OGFC | K6: Project No. | L6: ='JMF1'!C4 -> 0 | O6: Type Mix | P6: =I6 -> OGFC | R6: Project No. | S6: =L6 -> 0 | V6: Type Mix | W6: =P6 -> OGFC | Y6: Project No. | Z6: =S6 -> 0
A8: Date | D8: T.D.O.T. Insp. | E8: ='JMF1'!C63 -> 0 | H8: Date | K8: T.D.O.T. Insp. | L8: ='JMF1'!C63 -> 0 | O8: Date | R8: Inspector | S8: =L8 -> 0 | V8: Date | Y8: Inspector | Z8: =S8 -> 0
C10: Sample #(1) | J10: Sample #(2) | Q10: Sample #(3) | X10: Sample #(4)
A11: Sieve | B11: Weight | C11: Percent | D11: Percent | H11: Sieve | I11: Weight | J11: Percent | K11: Percent | O11: Sieve | P11: Weight | Q11: Percent | R11: Percent | V11: Sieve | W11: Weight | X11: Percent | Y11: Percent
A12: Size | B12: Retained | C12: Retained | D12: Passing | E12: J. M. F. | F12: Deviation | H12: Size | I12: Retained | J12: Retained | K12: Passing | L12: J. M. F. | M12: Deviation | O12: Size | P12: Retained | Q12: Retained | R12: Passing | S12: J. M. F. | T12: Deviation | V12: Size | W12: Retained | X12: Retained | Y12: Passing | Z12: J. M. F. | AA12: Deviation
A13: 1 1/2" | C13: =IF(B13=0,0,B13/$B$48*100) -> 0 | D13: =IF(C13=0,0,(100-C13)) -> 0 | E13: =IF('JMF1'!I46="","",'JMF1'!I46) -> 0 | F13: =IF(B13<0.01,0,D13-E13) -> 0 | H13: 1 1/2" | J13: =IF(I13=0,0,I13/$I$48*100) -> 0 | K13: =IF(J13=0,0,(100-J13)) -> 0 | L13: =E13 -> 0 | M13: =IF(I13<0.01,0,K13-L13) -> 0 | O13: 1 1/2" | Q13: =IF(P13=0,0,P13/$P$48*100) -> 0 | R13: =IF(Q13=0,0,(100-Q13)) -> 0 | S13: =L13 -> 0 | T13: =IF(P13<0.01,0,R13-S13) -> 0 | V13: 1 1/2" | X13: =IF(W13=0,0,W13/$W$48*100) -> 0 | Y13: =IF(X13=0,0,(100-X13)) -> 0 | Z13: =S13 -> 0 | AA13: =IF(W13<0.01,0,Y13-Z13) -> 0
A14: 1 1/4" | C14: =IF(B14=0,0,B14/$B$48*100) -> 0 | D14: =IF(C14=0,0,(100-C14)) -> 0 | E14: =IF('JMF1'!I47="","",'JMF1'!I47) -> 50 | F14: 0 | H14: 1 1/4" | J14: =IF(I14=0,0,I14/$I$48*100) -> 0 | K14: =IF(J14=0,0,(100-J14)) -> 0 | L14: 50 | M14: 0 | O14: 1 1/4" | Q14: =IF(P14=0,0,P14/$P$48*100) -> 0 | R14: =IF(Q14=0,0,(100-Q14)) -> 0 | S14: 50 | T14: 0 | V14: 1 1/4" | X14: =IF(W14=0,0,W14/$W$48*100) -> 0 | Y14: =IF(X14=0,0,(100-X14)) -> 0 | Z14: 50 | AA14: 0
A15: 1" | C15: 0 | D15: =IF(C15=0,0,(100-C15)) -> 0 | E15: =IF('JMF1'!I48="","",'JMF1'!I48) -> 50 | F15: 0 | H15: 1" | J15: 0 | K15: =IF(J15=0,0,(100-J15)) -> 0 | L15: 50 | M15: 0 | O15: 1" | Q15: 0 | R15: =IF(Q15=0,0,(100-Q15)) -> 0 | S15: 50 | T15: 0 | V15: 1" | X15: 0 | Y15: 0 | Z15: 50 | AA15: 0
A16: 3/4" | B16: 312.1 | C16: 15.73533737 | D16: =IF(C16=0,0,(100-C16)) -> 84.26466263 | E16: =IF('JMF1'!I49="","",'JMF1'!I49) -> 50 | F16: 34.26466263 | H16: 3/4" | I16: 312.1 | J16: 15.84635585 | K16: =IF(J16=0,0,(100-J16)) -> 84.15364415 | L16: 50 | M16: 34.15364415 | O16: 3/4" | P16: 312.1 | Q16: 15.84635585 | R16: =IF(Q16=0,0,(100-Q16)) -> 84.15364415 | S16: 50 | T16: 34.15364415 | V16: 3/4" | W16: 312.1 | X16: 15.84635585 | Y16: 84.15364415 | Z16: 50 | AA16: 34.15364415
A17: 5/8" | C17: 0 | D17: 0 | E17: =IF('JMF1'!I50="","",'JMF1'!I50) -> 50 | F17: 0 | H17: 5/8" | J17: 0 | K17: 0 | L17: 50 | M17: 0 | O17: 5/8" | Q17: 0 | R17: 0 | S17: 50 | T17: 0 | V17: 5/8" | X17: 0 | Y17: 0 | Z17: 50 | AA17: 0
A18: 1/2" | C18: 0 | D18: 0 | E18: =IF('JMF1'!I51="","",'JMF1'!I51) -> 48 | F18: 0 | H18: 1/2" | J18: 0 | K18: 0 | L18: 48 | M18: 0 | O18: 1/2" | Q18: 0 | R18: 0 | S18: 48 | T18: 0 | V18: 1/2" | X18: 0 | Y18: 0 | Z18: 48 | AA18: 0
A19: 3/8" | B19: 805 | C19: 40.58617938 | D19: 59.41382062 | E19: =IF('JMF1'!I52="","",'JMF1'!I52) -> 48 | F19: 11.41382062 | H19: 3/8" | I19: 805 | J19: 40.8725295 | K19: 59.1274705 | L19: 48 | M19: 11.1274705 | O19: 3/8" | P19: 805 | Q19: 40.8725295 | R19: 59.1274705 | S19: 48 | T19: 11.1274705 | V19: 3/8" | W19: 805 | X19: 40.8725295 | Y19: 59.1274705 | Z19: 48 | AA19: 11.1274705
A20: #4 | B20: 1238.3 | C20: 62.43213159 | D20: 37.56786841 | E20: =IF('JMF1'!I53="","",'JMF1'!I53) -> 48 | F20: -10.43213159 | H20: #4 | I20: 1238.3 | J20: 62.87261277 | K20: 37.12738723 | L20: 48 | M20: -10.87261277 | O20: #4 | P20: 1238.3 | Q20: 62.87261277 | R20: 37.12738723 | S20: 48 | T20: -10.87261277 | V20: #4 | W20: 1238.3 | X20: =IF(W20=0,0,W20/$W$48*100) -> 62.87261277 | Y20: 37.12738723 | Z20: 48 | AA20: -10.87261277
A21: #8 | B21: 1471.6 | C21: 74.19456097 | D21: 25.80543903 | E21: =IF('JMF1'!I54="","",'JMF1'!I54) -> 37 | F21: -11.19456097 | H21: #8 | I21: 1471.6 | J21: 74.71803032 | K21: 25.28196968 | L21: 37 | M21: -11.71803032 | O21: #8 | P21: 1471.6 | Q21: 74.71803032 | R21: 25.28196968 | S21: 37 | T21: -11.71803032 | V21: #8 | W21: 1471.6 | X21: 74.71803032 | Y21: 25.28196968 | Z21: 37 | AA21: -11.71803032
A22: #30 | B22: 1709.5 | C22: 86.18891137 | D22: 13.81108863 | E22: =IF('JMF1'!I56="","",'JMF1'!I56) -> 37 | F22: -23.18891137 | H22: #30 | I22: 1709.5 | J22: 86.79700519 | K22: 13.20299481 | L22: 37 | M22: -23.79700519 | O22: #30 | P22: 1709.5 | Q22: 86.79700519 | R22: 13.20299481 | S22: 37 | T22: -23.79700519 | V22: #30 | W22: 1709.5 | X22: 86.79700519 | Y22: 13.20299481 | Z22: 37 | AA22: -23.79700519
A23: #50 | B23: 1793.2 | C23: 90.40886568 | D23: 9.591134325 | E23: =IF('JMF1'!I57="","",'JMF1'!I57) -> 25 | F23: -15.40886568 | H23: #50 | I23: 1793.2 | J23: 91.04673279 | K23: 8.953267213 | L23: 25 | M23: -16.04673279 | O23: #50 | P23: 1793.2 | Q23: 91.04673279 | R23: 8.953267213 | S23: 25 | T23: -16.04673279 | V23: #50 | W23: 1793.2 | X23: 91.04673279 | Y23: 8.953267213 | Z23: 25 | AA23: -16.04673279
A24: #100 | B24: 1860.9 | C24: 93.82213815 | D24: 6.177861847 | E24: =IF('JMF1'!I58="","",'JMF1'!I58) -> 25 | F24: -18.82213815 | H24: #100 | I24: 1860.9 | J24: 94.48408713 | K24: 5.515912869 | L24: 25 | M24: -19.48408713 | O24: #100 | P24: 1860.9 | Q24: 94.48408713 | R24: 5.515912869 | S24: 25 | T24: -19.48408713 | V24: #100 | W24: 1860.9 | X24: 94.48408713 | Y24: 5.515912869 | Z24: 25 | AA24: -19.48408713
A25: #200 | B25: 1924.3 | C25: 97.01861489 | D25: 2.981385111 | E25: =IF('JMF1'!I59="","",'JMF1'!I59) -> 10 | F25: -7.018614889 | H25: #200 | I25: 1924.3 | J25: 97.70311616 | K25: 2.296883838 | L25: 10 | M25: -7.703116162 | O25: #200 | P25: 1924.3 | Q25: 97.70311616 | R25: 2.296883838 | S25: 10 | T25: -7.703116162 | V25: #200 | W25: 1924.3 | X25: 97.70311616 | Y25: 2.296883838 | Z25: 10 | AA25: -7.703116162
C26: Remarks: | J26: Remarks: | Q26: Remarks: | X26: Remarks:
A27: Total Wt. Aggr. | B27: =B48 -> 1983.4338 | H27: Total Wt. Aggr. | I27: =I48 -> 1969.538 | O27: Total Wt. Aggr. | P27: =P48 -> 1969.538 | V27: Total Wt. Aggr. | W27: =W48 -> 1969.538
A29: D.A.R. | B29: =IF(B48=0,0,D25/E45) -> 0.5521083539 | H29: D.A.R. | I29: =IF(I48=0,0,K25/L45) -> 0.5161536714 | O29: D.A.R. | P29: =IF(P48=0,0,R25/S45) -> 0.5161536714 | V29: D.A.R. | W29: =IF(W48=0,0,Y25/Z45) -> 0.5161536714
A32: =2164*0.9555 -> 2067.702 | C32: (Before Burnout) | J32: (Before Burnout) | Q32: (Before Burnout) | X32: (Before Burnout)
C33: Total Wt. Sample & Basket | E33: 5460.6 | J33: Total Wt. Sample & Basket | L33: 2264 | Q33: Total Wt. Sample & Basket | S33: 2264 | X33: Total Wt. Sample & Basket | Z33: 2264
C34: Basket Wt. | E34: 3364.2 | J34: Basket Wt. | L34: 100 | Q34: Basket Wt. | S34: 100 | X34: Basket Wt. | Z34: 100
C35: Wt. of Sample | E35: =E33-E34 -> 2096.4 | J35: Wt. of Sample | L35: =L33-L34 -> 2164 | Q35: Wt. of Sample | S35: =S33-S34 -> 2164 | X35: Wt. of Sample | Z35: =Z33-Z34 -> 2164
C37: (After Burnout) | J37: (After Burnout) | Q37: (After Burnout) | X37: (After Burnout)
C38: Total Wt. Sample & Basket | E38: 5338.2 | J38: Total Wt. Sample & Basket | L38: 2059.8 | Q38: Total Wt. Sample & Basket | S38: 2059.8 | X38: Total Wt. Sample & Basket | Z38: 2059.8
C39: Basket Wt. | E39: =E34 -> 3364.2 | J39: Basket Wt. | L39: =L34 -> 100 | Q39: Basket Wt. | S39: =S34 -> 100 | X39: Basket Wt. | Z39: =Z34 -> 100
C40: Wt. of Sample | E40: =E38-E39 -> 1974 | J40: Wt. of Sample | L40: =L38-L39 -> 1959.8 | Q40: Wt. of Sample | S40: =S38-S39 -> 1959.8 | X40: Wt. of Sample | Z40: =Z38-Z39 -> 1959.8
A43: ORIGINAL HMA SAMPLE | C43: Design A. C. | E43: ='JMF1'!G25 -> 7 | H43: ORIGINAL HMA SAMPLE | J43: Design A. C. | L43: =E43 -> 7 | O43: ORIGINAL HMA SAMPLE | Q43: Design A. C. | S43: =L43 -> 7 | V43: ORIGINAL HMA SAMPLE | X43: Design A. C. | Z43: =S43 -> 7
A45: Original Weight | B45: =E35 -> 2096.4 | C45: A. C. Content | E45: 5.4 | H45: Original Weight | I45: =L35 -> 2164 | J45: A. C. Content | L45: 4.45 | O45: Original Weight | P45: =S35 -> 2164 | Q45: A. C. Content | S45: 4.45 | V45: Original Weight | W45: =Z35 -> 2164 | X45: A. C. Content | Z45: 4.45
A46: Correction Factor | B46: ='JMF1'!I35 -> 0.45 | C46: from N.C.A.T.tape | H46: Correction Factor | I46: =B46 -> 0.45 | J46: from N.C.A.T.tape | O46: Correction Factor | P46: =I46 -> 0.45 | Q46: from N.C.A.T.tape | V46: Correction Factor | W46: =P46 -> 0.45 | X46: from N.C.A.T.tape
A48: Total Aggr. Mass | B48: =B45*B46/100+E40 -> 1983.4338 | C48: A.C. Content Deviation | E48: =E45-E43 -> -1.6 | H48: Total Aggr. Mass | I48: =I45*I46/100+L40 -> 1969.538 | J48: A.C. Content Deviation | L48: =L45-L43 -> -2.55 | O48: Total Aggr. Mass | P48: =P45*P46/100+S40 -> 1969.538 | Q48: A.C. Content Deviation | S48: =S45-S43 -> -2.55 | V48: Total Aggr. Mass | W48: =W45*W46/100+Z40 -> 1969.538 | X48: A.C. Content Deviation | Z48: =Z45-Z43 -> -2.55
A52: Fract. Face Count | B52: No. particles | C52: 100 | D52: Glassy Particles | E52: total wt. | F52: 400
B53: No. fractured | C53: 99 | E53: wt. glassy | F53: 10
B54: % fractured | C54: =IF(C53=0,0,(C53/C52)) -> 0.99 | E54: % glassy | F54: =IF(F53=0,0,(F53/F52)) -> 0.025

Sheet Ag Belt Samp. + RAP Belt Sample
B2: Date | G2: Mix Type | H2: ='JMF1'!E12 -> OGFC | P2: Date | U2: Mix Type | V2: =$H$2 -> OGFC
B4: Contract Number | D4: ='JMF1'!C5 -> 0 | P4: Contract Number | R4: =$D$4 -> 0
B6: Producer | D6: ='HMA Producers'!E1 -> 0 | P6: Producer | R6: =$D$6 -> 0
B8: SAMPLE #1 | P8: SAMPLE #3
D9: Virgin Material | F9: RAP | R9: Virgin Material | T9: RAP
B10: Percent of Aggregate | D10: 100 | E10: % | F10: 0 | G10: % | P10: Percent of Aggregate | S10: % | U10: %
B11: Total wt. Sample | D11: 100 | E11: grams | G11: grams | P11: Total wt. Sample | S11: grams | U11: grams
C12: Virgin | F12: RAP | I12: Combined | L12: J.M.F. | M12: ABS | Q12: Virgin | T12: RAP | W12: Combined | Z12: J.M.F. | AA12: ABS
B13: Sieve | C13: Wt. Ret. | D13: % Ret | E13: % Pass | F13: Wt. Ret. | G13: % Ret | H13: % Pass | I13: % Ret | J13: % Pass | M13: Deviation | P13: Sieve | Q13: Wt. Ret. | R13: % Ret | S13: % Pass | T13: Wt. Ret. | U13: % Ret | V13: % Pass | W13: % Ret | X13: % Pass | AA13: Deviation
B14: 2 " | D14: =IF(ISBLANK(C14),"",C14/$D$11) ->  | E14: =IF(ISBLANK(C14),"",1-D14) ->  | G14: =IF(ISBLANK(F14),0,F14/$F$11) -> 0 | H14: =IF(ISBLANK(F14),"",1-G14) ->  | I14: =IF(ISBLANK(C14),"",D14*$D$10+G14*$F$10) ->  | J14: =IF(ISBLANK(C14),0,100-I14) -> 0 | L14: ='JMF1'!I45 -> 0 | M14: =ABS(J14-L14) -> 0 | P14: 2 " | R14: =IF(ISBLANK(Q14),"",Q14/$R$11) ->  | S14: =IF(ISBLANK(Q14),"",1-R14) ->  | U14: =IF(ISBLANK(T14),0,T14/$T$11) -> 0 | V14: =IF(ISBLANK(T14),"",1-U14) ->  | W14: =IF(ISBLANK(Q14),"",R14*$D$10+U14*$F$10) ->  | X14: =IF(ISBLANK(Q14),0,100-W14) -> 0 | Z14: ='JMF1'!W45 -> 0 | AA14: =ABS(X14-Z14) -> 0
B15: 1 1/2" | D15: =IF(ISBLANK(C15),"",C15/$D$11) ->  | E15: =IF(ISBLANK(C15),"",1-D15) ->  | G15: =IF(ISBLANK(F15),0,F15/$F$11) -> 0 | H15: =IF(ISBLANK(F15),"",1-G15) ->  | I15: =IF(ISBLANK(C15),"",D15*$D$10+G15*$F$10) ->  | J15: =IF(ISBLANK(C15),0,100-I15) -> 0 | L15: ='JMF1'!I46 -> 0 | M15: =ABS(J15-L15) -> 0 | P15: 1 1/2" | R15: =IF(ISBLANK(Q15),"",Q15/$R$11) ->  | S15: =IF(ISBLANK(Q15),"",1-R15) ->  | U15: =IF(ISBLANK(T15),0,T15/$T$11) -> 0 | V15: =IF(ISBLANK(T15),"",1-U15) ->  | W15: =IF(ISBLANK(Q15),"",R15*$D$10+U15*$F$10) ->  | X15: =IF(ISBLANK(Q15),0,100-W15) -> 0 | Z15: ='JMF1'!W46 -> 0 | AA15: =ABS(X15-Z15) -> 0
B16: 3/4" | G16: 0 | J16: 0 | L16: ='JMF1'!I49 -> 50 | M16: 50 | P16: 3/4" | U16: 0 | X16: 0 | Z16: ='JMF1'!W49 -> 0 | AA16: 0
B17: 3/8" | G17: 0 | J17: 0 | L17: ='JMF1'!I52 -> 48 | M17: 48 | P17: 3/8" | U17: 0 | X17: 0 | Z17: ='JMF1'!W52 -> 0 | AA17: 0
B18: # 4 | G18: 0 | J18: 0 | L18: ='JMF1'!I53 -> 48 | M18: 48 | P18: # 4 | U18: 0 | X18: 0 | Z18: ='JMF1'!W53 -> 0 | AA18: 0
B19: # 8 | G19: 0 | J19: 0 | L19: ='JMF1'!I54 -> 37 | M19: 37 | P19: # 8 | U19: 0 | X19: 0 | Z19: ='JMF1'!W54 -> 0 | AA19: 0
B21: OPTIONAL: REDUCE SIZE OF -8 MAT'L PER TDOT PROCEDURE FOR BELT SAMPLING, ENTER AMOUNT OF -8 USED FOR FINE AGG SIEVE ANALYSIS BELOW | P21: OPTIONAL: REDUCE SIZE OF -8 MAT'L PER TDOT PROCEDURE FOR BELT SAMPLING, ENTER AMOUNT OF -8 USED FOR FINE AGG SIEVE ANALYSIS BELOW
D22: Virgin Material | F22: RAP | R22: Virgin Material | T22: RAP
B23: Wt. of - #8 original | D23: =D11*E19 ->  | E23: grams | F23: =F11*H19 ->  | G23: grams | P23: Wt. of - #8 original | R23: =R11*S19 ->  | S23: grams | T23: =T11*V19 ->  | U23: grams
B24: Wt. of - #8 mt'l used | D24: 45 | E24: grams | F24: 0 | G24: grams | P24: Wt. of - #8 mt'l used | S24: grams | U24: grams
D25: =D24/D23 ->  | F25: =F24/F23 ->  | R25: =R24/R23 ->  | T25: =T24/T23 -> 
C26: Virgin | F26: RAP | I26: Combined | L26: J.M.F. | M26: Deviation | Q26: Virgin | T26: RAP | W26: Combined | Z26: J.M.F. | AA26: Deviation
B27: Sieve | C27: Wt. Ret. | D27: % Ret | E27: % Pass | F27: Wt. Ret. | G27: % Ret | H27: % Pass | I27: % Ret | J27: % Pass | P27: Sieve | Q27: Wt. Ret. | R27: % Ret | S27: % Pass | T27: Wt. Ret. | U27: % Ret | V27: % Pass | W27: % Ret | X27: % Pass
B28: # 30 | D28: =IF(ISBLANK(C28),"",$D$19+(C28/$D$25)/$D$11) ->  | E28: =IF(ISBLANK(C28),"",1-D28) ->  | G28: =IF(ISBLANK(F28),0,$G$19+(F28/$F$25)/$F$11) -> 0 | H28: =IF(ISBLANK(F28),"",1-G28) ->  | I28: =IF(ISBLANK(C28),"",D28*$D$10+G28*$F$10) ->  | J28: =IF(ISBLANK(C28),0,100-I28) -> 0 | L28: ='JMF1'!I56 -> 37 | M28: =ABS(J28-L28) -> 37 | P28: # 30 | R28: =IF(ISBLANK(Q28),"",$R$19+(Q28/$R$25)/$R$11) ->  | S28: =IF(ISBLANK(Q28),"",1-R28) ->  | U28: =IF(ISBLANK(T28),0,$U$19+(T28/$T$25)/$T$11) -> 0 | V28: =IF(ISBLANK(T28),"",1-U28) ->  | W28: =IF(ISBLANK(Q28),"",R28*$D$10+U28*$F$10) ->  | X28: =IF(ISBLANK(Q28),0,100-W28) -> 0 | Z28: ='JMF1'!W56 -> 0 | AA28: =ABS(X28-Z28) -> 0
B29: # 50 | D29: =IF(ISBLANK(C29),"",$D$19+(C29/$D$25)/$D$11) ->  | E29: =IF(ISBLANK(C29),"",1-D29) ->  | G29: =IF(ISBLANK(F29),0,$G$19+(F29/$F$25)/$F$11) -> 0 | H29: =IF(ISBLANK(F29),"",1-G29) ->  | I29: =IF(ISBLANK(C29),"",D29*$D$10+G29*$F$10) ->  | J29: =IF(ISBLANK(C29),0,100-I29) -> 0 | L29: ='JMF1'!I57 -> 25 | M29: =ABS(J29-L29) -> 25 | P29: # 50 | R29: =IF(ISBLANK(Q29),"",$R$19+(Q29/$R$25)/$R$11) ->  | S29: =IF(ISBLANK(Q29),"",1-R29) ->  | U29: =IF(ISBLANK(T29),0,$U$19+(T29/$T$25)/$T$11) -> 0 | V29: =IF(ISBLANK(T29),"",1-U29) ->  | W29: =IF(ISBLANK(Q29),"",R29*$D$10+U29*$F$10) ->  | X29: =IF(ISBLANK(Q29),0,100-W29) -> 0 | Z29: ='JMF1'!W57 -> 0 | AA29: =ABS(X29-Z29) -> 0
B30: # 100 | G30: 0 | J30: 0 | L30: ='JMF1'!I58 -> 25 | M30: 25 | P30: # 100 | U30: 0 | X30: 0 | Z30: ='JMF1'!W58 -> 0 | AA30: 0
B31: # 200 | G31: 0 | J31: 0 | L31: ='JMF1'!I59 -> 10 | M31: 10 | P31: # 200 | U31: 0 | X31: 0 | Z31: ='JMF1'!W59 -> 0 | AA31: 0
B32: Remarks: | P32: Remarks:
B39: Date | G39: Mix Type | H39: =$H$2 -> OGFC | P39: Date | U39: Mix Type | V39: =$H$2 -> OGFC
B41: Contract Number | D41: =$D$4 -> 0 | P41: Contract Number | R41: =$D$4 -> 0
B43: Producer | D43: =$D$6 -> 0 | P43: Producer | R43: =$D$6 -> 0
B45: SAMPLE #2 | P45: SAMPLE #4
D46: Virgin Material | F46: RAP | R46: Virgin Material | T46: RAP
B47: Percent of Aggregate | D47: 100 | E47: % | G47: % | P47: Percent of Aggregate | S47: % | U47: %
B48: Total wt. Sample | D48: 100 | E48: grams | G48: grams | P48: Total wt. Sample | S48: grams | U48: grams
C49: Virgin | F49: RAP | I49: Combined | L49: J.M.F. | M49: ABS | Q49: Virgin | T49: RAP | W49: Combined | Z49: J.M.F. | AA49: ABS
B50: Sieve | C50: Wt. Ret. | D50: % Ret | E50: % Pass | F50: Wt. Ret. | G50: % Ret | H50: % Pass | I50: % Ret | J50: % Pass | M50: Deviation | P50: Sieve | Q50: Wt. Ret. | R50: % Ret | S50: % Pass | T50: Wt. Ret. | U50: % Ret | V50: % Pass | W50: % Ret | X50: % Pass | AA50: Deviation
B51: 2 " | D51: =IF(ISBLANK(C51),"",C51/$D$48) ->  | E51: =IF(ISBLANK(C51),"",1-D51) ->  | G51: =IF(ISBLANK(F51),0,F51/$F$11) -> 0 | H51: =IF(ISBLANK(F51),"",1-G51) ->  | I51: =IF(ISBLANK(C51),"",D51*$D$10+G51*$F$10) ->  | J51: =IF(ISBLANK(C51),0,100-I51) -> 0 | L51: ='JMF1'!I82 -> 0 | M51: =ABS(J51-L51) -> 0 | P51: 2 " | R51: =IF(ISBLANK(Q51),"",Q51/$R$48) ->  | S51: =IF(ISBLANK(Q51),"",1-R51) ->  | U51: =IF(ISBLANK(T51),0,T51/$T$48) -> 0 | V51: =IF(ISBLANK(T51),"",1-U51) ->  | W51: =IF(ISBLANK(Q51),"",R51*$D$10+U51*$F$10) ->  | X51: =IF(ISBLANK(Q51),0,100-W51) -> 0 | Z51: ='JMF1'!W82 -> 0 | AA51: =ABS(X51-Z51) -> 0
B52: 1 1/2" | D52: =IF(ISBLANK(C52),"",C52/$D$48) ->  | E52: =IF(ISBLANK(C52),"",1-D52) ->  | G52: =IF(ISBLANK(F52),0,F52/$F$11) -> 0 | H52: =IF(ISBLANK(F52),"",1-G52) ->  | I52: =IF(ISBLANK(C52),"",D52*$D$10+G52*$F$10) ->  | J52: =IF(ISBLANK(C52),0,100-I52) -> 0 | L52: ='JMF1'!I83 -> 0 | M52: =ABS(J52-L52) -> 0 | P52: 1 1/2" | R52: =IF(ISBLANK(Q52),"",Q52/$R$48) ->  | S52: =IF(ISBLANK(Q52),"",1-R52) ->  | U52: =IF(ISBLANK(T52),0,T52/$T$48) -> 0 | V52: =IF(ISBLANK(T52),"",1-U52) ->  | W52: =IF(ISBLANK(Q52),"",R52*$D$10+U52*$F$10) ->  | X52: =IF(ISBLANK(Q52),0,100-W52) -> 0 | Z52: ='JMF1'!W83 -> 0 | AA52: =ABS(X52-Z52) -> 0
B53: 3/4" | G53: 0 | J53: 0 | L53: ='JMF1'!I86 -> 0 | M53: 0 | P53: 3/4" | U53: 0 | X53: 0 | Z53: ='JMF1'!W86 -> 0 | AA53: 0
B54: 3/8" | G54: 0 | J54: 0 | L54: ='JMF1'!I89 -> 0 | M54: 0 | P54: 3/8" | U54: 0 | X54: 0 | Z54: ='JMF1'!W89 -> 0 | AA54: 0
B55: # 4 | G55: 0 | J55: 0 | L55: ='JMF1'!I90 -> 0 | M55: 0 | P55: # 4 | U55: 0 | X55: 0 | Z55: ='JMF1'!W90 -> 0 | AA55: 0
B56: # 8 | G56: 0 | J56: 0 | L56: ='JMF1'!I91 -> 0 | M56: 0 | P56: # 8 | U56: 0 | X56: 0 | Z56: ='JMF1'!W91 -> 0 | AA56: 0
B58: OPTIONAL: REDUCE SIZE OF -8 MAT'L PER TDOT PROCEDURE FOR BELT SAMPLING, ENTER AMOUNT OF -8 USED FOR FINE AGG SIEVE ANALYSIS BELOW | P58: OPTIONAL: REDUCE SIZE OF -8 MAT'L PER TDOT PROCEDURE FOR BELT SAMPLING, ENTER AMOUNT OF -8 USED FOR FINE AGG SIEVE ANALYSIS BELOW
D59: Virgin Material | F59: RAP | R59: Virgin Material | T59: RAP
B60: Wt. of - #8 original | D60: =D48*E56 ->  | E60: grams | F60: =F48*H56 ->  | G60: grams | P60: Wt. of - #8 original | R60: =R48*S56 ->  | S60: grams | T60: =T48*V56 ->  | U60: grams
B61: Wt. of - #8 mt'l used | D61: 45 | E61: grams | G61: grams | P61: Wt. of - #8 mt'l used | S61: grams | U61: grams
D62: =D61/D60 ->  | F62: =F61/F60 ->  | R62: =R61/R60 ->  | T62: =T61/T60 -> 
C63: Virgin | F63: RAP | I63: Combined | L63: J.M.F. | M63: Deviation | Q63: Virgin | T63: RAP | W63: Combined | Z63: J.M.F. | AA63: Deviation
B64: Sieve | C64: Wt. Ret. | D64: % Ret | E64: % Pass | F64: Wt. Ret. | G64: % Ret | H64: % Pass | I64: % Ret | J64: % Pass | P64: Sieve | Q64: Wt. Ret. | R64: % Ret | S64: % Pass | T64: Wt. Ret. | U64: % Ret | V64: % Pass | W64: % Ret | X64: % Pass
B65: # 30 | D65: =IF(ISBLANK(C65),"",$D$56+(C65/$D$62)/$D$48) ->  | E65: =IF(ISBLANK(C65),"",1-D65) ->  | G65: =IF(ISBLANK(F65),0,$G$19+(F65/$F$25)/$F$11) -> 0 | H65: =IF(ISBLANK(F65),"",1-G65) ->  | I65: =IF(ISBLANK(C65),"",D65*$D$10+G65*$F$10) ->  | J65: =IF(ISBLANK(C65),0,100-I65) -> 0 | L65: ='JMF1'!I93 -> 0 | M65: =ABS(J65-L65) -> 0 | P65: # 30 | R65: =IF(ISBLANK(Q65),"",$R$56+(Q65/$R$62)/$R$48) ->  | S65: =IF(ISBLANK(Q65),"",1-R65) ->  | U65: =IF(ISBLANK(T65),0,$U$56+(T65/$T$62)/$T$48) -> 0 | V65: =IF(ISBLANK(T65),"",1-U65) ->  | W65: =IF(ISBLANK(Q65),"",R65*$D$10+U65*$F$10) ->  | X65: =IF(ISBLANK(Q65),0,100-W65) -> 0 | Z65: ='JMF1'!W93 -> 0 | AA65: =ABS(X65-Z65) -> 0
B66: # 50 | D66: =IF(ISBLANK(C66),"",$D$56+(C66/$D$62)/$D$48) ->  | E66: =IF(ISBLANK(C66),"",1-D66) ->  | G66: =IF(ISBLANK(F66),0,$G$19+(F66/$F$25)/$F$11) -> 0 | H66: =IF(ISBLANK(F66),"",1-G66) ->  | I66: =IF(ISBLANK(C66),"",D66*$D$10+G66*$F$10) ->  | J66: =IF(ISBLANK(C66),0,100-I66) -> 0 | L66: ='JMF1'!I94 -> 0 | M66: =ABS(J66-L66) -> 0 | P66: # 50 | R66: =IF(ISBLANK(Q66),"",$R$56+(Q66/$R$62)/$R$48) ->  | S66: =IF(ISBLANK(Q66),"",1-R66) ->  | U66: =IF(ISBLANK(T66),0,$U$56+(T66/$T$62)/$T$48) -> 0 | V66: =IF(ISBLANK(T66),"",1-U66) ->  | W66: =IF(ISBLANK(Q66),"",R66*$D$10+U66*$F$10) ->  | X66: =IF(ISBLANK(Q66),0,100-W66) -> 0 | Z66: ='JMF1'!W94 -> 0 | AA66: =ABS(X66-Z66) -> 0
B67: # 100 | G67: 0 | J67: 0 | L67: ='JMF1'!I95 -> 0 | M67: 0 | P67: # 100 | U67: 0 | X67: 0 | Z67: ='JMF1'!W95 -> 0 | AA67: 0
B68: # 200 | G68: 0 | J68: 0 | L68: ='JMF1'!I96 -> 0 | M68: 0 | P68: # 200 | U68: 0 | X68: 0 | Z68: ='JMF1'!W96 -> 0 | AA68: 0
B69: Remarks: | P69: Remarks:

Sheet LOI
B3: Project No. | C3: ='JMF1'!C4 -> 0 | F3: Contr. No. | G3: ='JMF1'!C5 -> 0
B5: Date | C5: 2010-10-26 | F5: Type Mix | G5: ='JMF1'!E12 -> OGFC
A7: 1 | B7: Calculating % Filter aid in Extracted Aggregate :
C9: NOTE: | D9: Minimum size sample = 600 grams
B11: (1) | C11: Wt.of total recovered aggregate + filter aid | H11: 600
B12: (2) | C12: Wt.of filter aid used in extraction | H12: 73
B13: (3) | C13: Wt. of total recovered aggregate | H13: =H11-H12 -> 527
C15: % filter aid = (2) divided by (1) x 100 = | H15: =IF(H13=0,0,H12/H11) -> 0.1216666667
C17: % recovered aggregate = (3) divided by (1) x 100 = | H17: =IF(H15=0,1,H13/H11) -> 0.8783333333
A19: 2 | B19: Test Sample ( Corrected for Filter aid ):
E21: Wt.of test sample | H21: 600
B23: (4) | C23: Test sample X % Recovered Aggregate | G23: = | H23: =ROUND(H21*H17,1) -> 527
D24: 100
B26: (5) | C26: Weight of container = | H26: 100
A28: 3 | B28: Determining Weight Loss:
B30: Wt. of container + test sample + filter aid ( before ignition ) | H30: =H21+H26 -> 700
B32: Wt. of container + test sample + filter aid ( after ignition ) | H32: 680
E34: (6) | F34: Weight loss | H34: =H30-H32 -> 20
A39: 4 | B39: Calculating L.O.I. :
B41: L.O.I. = (6) divided by (4) X 100 = | F41: =IF(H13=0,0,H34/H23*100) -> 3.795066414
B45: T.D.O.T. Insp. | D45: ='JMF1'!C63 -> 0
B46: Title | D46: ='JMF1'!G63 -> 0
B50: Remarks: | C50: hhh

Sheet RICE GRAVITY (Gmm)
E1: MAXIMUM SPECIFIC GRAVITY | O1: MAXIMUM SPECIFIC GRAVITY
E2: OF BITUMINOUS PAVING MIXTURES | O2: OF BITUMINOUS PAVING MIXTURES
E3: A.M. Sample | O3: P.M. Sample
E4: (AASHTO T - 209) | O4: (AASHTO T - 209)
A5: Date | B5: 2010-10-26 | K5: Date
A6: Type Mix | B6: ='JMF1'!E12 -> OGFC | E6: T.D.O.T. Insp. | G6: ='JMF1'!C63 -> 0 | K6: Type Mix | L6: =B6 -> OGFC | O6: T.D.O.T. Insp. | Q6: =G6 -> 0
A7: Proj. No. | B7: ='JMF1'!C4 -> 0 | E7: Title | G7: ='JMF1'!G63 -> 0 | K7: Proj. No. | L7: =B7 -> 00:00:00 | O7: Title | Q7: =G7 -> 0
D8: A.M. Sample | N8: P.M. Sample
A10: JAR NO. 1 | F10: % A.C. | K10: JAR NO. 1 | P10: % A.C.
F11: SP.GR. A.C. | G11: ='JMF1'!C29 -> 1.032 | P11: SP.GR. A.C. | Q11: =G11 -> 1.032
A12: Wt. dry sample + jar | C12: 1606.5 | K12: Wt. dry sample + jar
A13: Wt. jar - | K13: Wt. jar -
A14: Wt. dry sample (A) | C14: =C12-C13 -> 1606.5 | K14: Wt. dry sample (A) | M14: =M12-M13 -> 0
A16: Wt. JAR FILLED WITH WATER (D) | G16: 7364.9 | K16: Wt. JAR FILLED WITH WATER (D)
A18: Wt. JAR FILLED WITH WATER AND DRY SAMPLE (E) | G18: 8307.7 | K18: Wt. JAR FILLED WITH WATER AND DRY SAMPLE (E)
A21: JAR NO. 2 | F21: % A.C. | G21: =G10 -> 0 | K21: JAR NO. 2 | P21: % A.C. | Q21: =Q10 -> 0
G22: =G11 -> 1.032 | Q22: =Q11 -> 1.032
A23: Wt. dry sample + jar | K23: Wt. dry sample + jar
A24: Wt. jar - | K24: Wt. jar -
A25: Wt. dry sample (A) | C25: =C23-C24 -> 0 | K25: Wt. dry sample (A) | M25: =M23-M24 -> 0
A27: Wt. JAR FILLED WITH WATER (D) | K27: Wt. JAR FILLED WITH WATER (D)
A29: Wt. JAR FILLED WITH WATER AND DRY SAMPLE (E) | K29: Wt. JAR FILLED WITH WATER AND DRY SAMPLE (E)
A32: CALCULATIONS | K32: CALCULATIONS
A34: COMBINED WEIGHTS JARS 1 & 2 | K34: COMBINED WEIGHTS JARS 1 & 2
A36: WTS. DRY SAMPLE (A) | E36: =IF(C25=0,C14,(C14+C25)/2) -> 1606.5 | K36: WTS. DRY SAMPLE (A) | O36: =IF(M25=0,M14,(M14+M25)/2) -> 0
A37: WTS. JAR FILLED WITH WATER (D) | F37: =IF(G27=0,G16,(G16+G27)/2) -> 7364.9 | K37: WTS. JAR FILLED WITH WATER (D) | P37: =IF(Q27=0,Q16,(Q16+Q27)/2) -> 0
A38: WTS. JAR FILLED WITH WATER & DRY SAMPLE (E) | G38: =IF(G29=0,G18,(G18+G29)/2) -> 8307.7 | K38: WTS. JAR FILLED WITH WATER & DRY SAMPLE (E) | Q38: =IF(Q29=0,Q18,(Q18+Q29)/2) -> 0
A40: MAXIMUM SPECIFIC GRAVITY OF MIX = A / (A+D-E) = | G40: =IF(C12=0,0,E36/(E36+F37-G38)) -> 2.42052132 | K40: MAXIMUM SPECIFIC GRAVITY OF MIX = A / (A+D-E) = | Q40: =IF(M12=0,0,O36/(O36+P37-Q38)) -> 0
A43: CALCULATION OF THE EFFECTIVE GRAVITY OF THE AGGREGATES: | K43: CALCULATION OF THE EFFECTIVE GRAVITY OF THE AGGREGATES:
A45: EFFECTIVE GRAVITY = | F45: % AGGREGATE | K45: EFFECTIVE GRAVITY = | P45: % AGGREGATE
D46: 100 | F46: - | G46: % A.C. | N46: 100 | P46: - | Q46: % A.C.
D47: MAX.SP. GR. MIX | G47: SP. GR. A.C. | N47: MAX.SP. GR. MIX | Q47: SP. GR. A.C.
A50: EFFECTIVE GRAVITY = | D50: =IF(G40=0,0,(100-G10)/(100/G40-G10/G11)) -> 2.42052132 | K50: EFFECTIVE GRAVITY = | N50: =IF(Q40=0,0,(100-Q10)/(100/Q40-Q10/Q11)) -> 0

Sheet Marshall Worksheet
D2: Date | E2: 2010-10-26 | H2: Cont. No. | I2: ='JMF1'!C5 -> 0 | K2: Contractor | M2: ='JMF1'!C6 -> 0
D3: Type Mix | E3: ='JMF1'!E12 -> OGFC | H3: County | I3: ='JMF1'!H5 -> 0 | K3: No. Hammer Blows | M3: 75
D4: Proj. No. | E4: ='JMF1'!C4 -> 0 | H4: Region | I4: ='JMF1'!H4 -> 0 | K4: sp.gr. a.c. | M4: ='JMF1'!C29 -> 1.032
D6: Weight | F6: Grams | G6: Volume | H6: Bulk Sp.Gr. | I6: Theo. | J6: Effective | K6: % Voids | L6: % Voids | M6: % Voids | N6: Unit Wt. | O6: Stability | P6: Flow
A7: Sample | D7: Marshall | F7: Specimen | G7: Marshall | H7: Marshall | I7: Gravity | J7: Gravity | K7: Total | L7: Min. Agg. | M7: Filled | N7: (PCF) | O7: Lbs. | P7: ( .01")
A8: No. | B8: % AC | C8: % Agg. | D8: In Air | E8: S S D | F8: In Water | G8: Specimen | H8: Specimen | I8: Mix | J8: Aggs. | K8: Mix | L8: (VMA) | M8: With AC
B9: A | C9: B | D9: C | E9: D | F9: E | G9: F | H9: G | I9: H | J9: I | K9: J | L9: K | M9: L | N9: M | O9: O | P9: P
A10: 1 | B10: 5.49 | C10: =IF(B10=0,0,100-B10) -> 94.51 | D10: 1181.8 | E10: 1184.6 | F10: 679.7 | G10: =E10-F10 -> 504.9 | H10: =ROUND(IF(G10<1,0,D10/G10),3) -> 2.341 | I10: 2.421 | J10: =IF(I10=0,0,C10/((100/I10)-(B10/M4))) -> 2.626337189 | K10: =ROUND(IF(H13<1,0,100-H13/I10*100),1) -> 3.4 | L10: =ROUND(IF(H13<1,0,100-C10*H13/J10),1) -> 15.8 | M10: =ROUND(IF(H13<1,0,B10*H13/$M$4/L10*100),1) -> 78.8 | N10: =H13*62.4 -> 145.9536 | O10: 2350 | P10: 14.5
A11: 2 | B11: A.M. | D11: 1189.3 | E11: 1190.6 | F11: 682.4 | G11: =E11-F11 -> 508.2 | H11: =ROUND(IF(G11<1,0,D11/G11),3) -> 2.34 | O11: 2450 | P11: 14
A12: 3 | B12: Sample | D12: 1187.8 | E12: 1189.2 | F12: 680.8 | G12: =E12-F12 -> 508.4 | H12: =ROUND(IF(G12<1,0,D12/G12),3) -> 2.336 | O12: 2500 | P12: 14
G13: Average | H13: =IF(H12=0,(H10+H11)/2,(H10+H11+H12)/3) -> 2.339 | N13: Average | O13: =IF(COUNT(O10:O12)>0,AVERAGE(O10:O12),"") -> 2433.333333 | P13: =IF(COUNT(P10:P12)>0,AVERAGE(P10:P12),"") -> 14.16666667
A14: 1 | C14: =IF(B14=0,0,100-B14) -> 0 | G14: =E14-F14 -> 0 | H14: =ROUND(IF(G14<1,0,D14/G14),3) -> 0 | J14: =IF(I14=0,0,C14/((100/I14)-(B14/M$4))) -> 0 | K14: =ROUND(IF(H17<1,0,100-H17/I14*100),1) -> 0 | L14: =ROUND(IF(H17<1,0,100-C14*H17/J14),1) -> 0 | M14: =ROUND(IF(H17<1,0,B14*H17/$M$4/L14*100),1) -> 0 | N14: =H17*62.4 -> 0
A15: 2 | G15: =E15-F15 -> 0 | H15: =ROUND(IF(G15<1,0,D15/G15),3) -> 0
A16: 3 | G16: =E16-F16 -> 0 | H16: =ROUND(IF(G16<1,0,D16/G16),3) -> 0
G17: Average | H17: =IF(H16=0,(H14+H15)/2,(H14+H15+H16)/3) -> 0 | N17: Average | O17: =IF(COUNT(O14:O16)>0,AVERAGE(O14:O16),"") ->  | P17: =IF(COUNT(P14:P16)>0,AVERAGE(P14:P16),"") -> 
A18: 1 | C18: =IF(B18=0,0,100-B18) -> 0 | G18: =E18-F18 -> 0 | H18: =ROUND(IF(G18<1,0,D18/G18),3) -> 0 | J18: =IF(I18=0,0,C18/((100/I18)-(B18/M$4))) -> 0 | K18: =ROUND(IF(H21<1,0,100-H21/I18*100),1) -> 0 | L18: =ROUND(IF(H21<1,0,100-C18*H21/J18),1) -> 0 | M18: =ROUND(IF(H21<1,0,B18*H21/$M$4/L18*100),1) -> 0 | N18: =H21*62.4 -> 0
A19: 2 | G19: =E19-F19 -> 0 | H19: =ROUND(IF(G19<1,0,D19/G19),3) -> 0
A20: 3 | G20: =E20-F20 -> 0 | H20: =ROUND(IF(G20<1,0,D20/G20),3) -> 0
G21: Average | H21: =IF(H20=0,(H18+H19)/2,(H18+H19+H20)/3) -> 0 | N21: Average | O21: =IF(COUNT(O18:O20)>0,AVERAGE(O18:O20),"") ->  | P21: =IF(COUNT(P18:P20)>0,AVERAGE(P18:P20),"") -> 
A22: 1 | C22: =IF(B22=0,0,100-B22) -> 0 | G22: =E22-F22 -> 0 | H22: =ROUND(IF(G22<1,0,D22/G22),3) -> 0 | J22: =IF(I22=0,0,C22/((100/I22)-(B22/M$4))) -> 0 | K22: =ROUND(IF(H25<1,0,100-H25/I22*100),1) -> 0 | L22: =ROUND(IF(H25<1,0,100-C22*H25/J22),1) -> 0 | M22: =ROUND(IF(H25<1,0,B22*H25/$M$4/L22*100),1) -> 0 | N22: =H25*62.4 -> 0
A23: 2 | G23: =E23-F23 -> 0 | H23: =ROUND(IF(G23<1,0,D23/G23),3) -> 0
A24: 3 | G24: =E24-F24 -> 0 | H24: =ROUND(IF(G24<1,0,D24/G24),3) -> 0
G25: Average | H25: =IF(H24=0,(H22+H23)/2,(H22+H23+H24)/3) -> 0 | N25: Average | O25: =IF(COUNT(O22:O24)>0,AVERAGE(O22:O24),"") ->  | P25: =IF(COUNT(P22:P24)>0,AVERAGE(P22:P24),"") -> 
A26: 1 | C26: =IF(B26=0,0,100-B26) -> 0 | G26: =E26-F26 -> 0 | H26: =ROUND(IF(G26<1,0,D26/G26),3) -> 0 | J26: =IF(I26=0,0,C26/((100/I26)-(B26/M$4))) -> 0 | K26: =ROUND(IF(H29<1,0,100-H29/I26*100),1) -> 0 | L26: =ROUND(IF(H29<1,0,100-C26*H29/J26),1) -> 0 | M26: =ROUND(IF(H29<1,0,B26*H29/$M$4/L26*100),1) -> 0 | N26: =H29*62.4 -> 0
A27: 2 | B27: P.M. | G27: =E27-F27 -> 0 | H27: =ROUND(IF(G27<1,0,D27/G27),3) -> 0
A28: 3 | B28: Sample | G28: =E28-F28 -> 0 | H28: =ROUND(IF(G28<1,0,D28/G28),3) -> 0
G29: Average | H29: =IF(H28=0,(H26+H27)/2,(H26+H27+H28)/3) -> 0 | N29: Average | O29: =IF(COUNT(O26:O28)>0,AVERAGE(O26:O28),"") ->  | P29: =IF(COUNT(P26:P28)>0,AVERAGE(P26:P28),"") -> 
K31: Efff. Gr. Aggs. | N31: B
M32: 100 / H - A / Sp. gr. AC
K34: Theo. Grav. | N34: 100
K35: (at any ac content) | M35: A /Sp. Gr. AC + B / I

Sheet TSR
A2: Project no. | C2: ='JMF1'!C4 -> 0 | F2: Type Mix | G2: ='JMF1'!E12 -> OGFC
A3: Additive | C3: ='JMF1'!D27 -> 0 | F3: Dosage | G3: ='JMF1'!I27 -> 0
A4: Compaction Method | C4: MARSHALL | F4: Effort | G4: 17
A5: Date tested | C5: 2010-10-26 | F5: By | G5: ='JMF1'!C63 -> 0
A8: Sample I.D. | D8: 1 | E8: 2 | F8: 3 | G8: 4 | H8: 5 | I8: 6
A10: Diameter | C10: D | D10: 4 | E10: 4 | F10: 4 | G10: 4 | H10: 4 | I10: 4
A12: Thickness | C12: T | D12: 2.61 | E12: 2.6 | F12: 2.58 | G12: 2.6 | H12: 2.59 | I12: 2.58
A14: Dry mass in air | C14: A | D14: 1186.2 | E14: 1183.5 | F14: 1190.6 | G14: 1181.6 | H14: 1184.9 | I14: 1180.5
A16: SSD mass | C16: B | D16: 1191.7 | E16: 1188.6 | F16: 1195.7 | G16: 1189.8 | H16: 1192 | I16: 1189.7
A18: Mass in Water | C18: C | D18: 666.1 | E18: 662.8 | F18: 667.8 | G18: 660 | H18: 663.3 | I18: 661.2
A20: Volume (B-C) | C20: E | D20: =D16-D18 -> 525.6 | E20: 525.8 | F20: 527.9 | G20: 529.8 | H20: 528.7 | I20: 528.5
A22: Bulk sp. gr. (A/E) | C22: F | D22: =IF(D20=0,0,(D14/D20)) -> 2.256849315 | E22: 2.250855839 | F22: 2.255351392 | G22: 2.230275576 | H22: 2.241157556 | I22: 2.233680227
A24: Max sp. gr. | C24: G | D24: 2.421 | E24: =+D24 -> 2.421 | F24: =+E24 -> 2.421 | G24: =+F24 -> 2.421 | H24: =+G24 -> 2.421 | I24: =+H24 -> 2.421
A26: % air void (100(G-F)/G) | C26: H | D26: =IF(D14=0,0,100*(D24-D22)/D24) -> 6.780284384 | E26: 7.027846397 | F26: 6.842156452 | G26: 7.87791922 | H26: 7.428436337 | I26: 7.737289258
A28: Volume air void, HE/100 | C28: I | D28: =(D26*D20/100) -> 35.63717472 | E28: =ROUND((E26*E20/100),1) -> 37 | F28: =ROUND((F26*F20/100),1) -> 36.1 | G28: =ROUND((G26*G20/100),1) -> 41.7 | H28: =ROUND((H26*H20/100),1) -> 39.3 | I28: =ROUND((I26*I20/100),1) -> 40.9
A30: Load | C30: P | G30: 2050 | H30: 2180 | I30: 2000
A31: Saturated | C31: minute @ | F31: "hg
A33: SSD Mass | C33: B' | D33: 1211.7 | E33: 1209.3 | F33: 1214.8
A35: Vol. Abs. water (B'-A) | C35: J' | D35: =IF(D33<1,0,D33-D14) -> 25.5 | E35: 25.8 | F35: 24.2 | G35: 0 | H35: 0 | I35: 0
A37: Saturation (100J' / I) | D37: =IF(D14=0,0,100*(D35/D28)) -> 71.55449387 | E37: 69.72972973 | F37: 67.03601108 | G37: 0 | H37: 0 | I37: 0
A38: Conditioned 24 hours in 140 degree F. water
A40: Thickness | C40: T' | D40: 2.61 | E40: 2.6 | F40: 2.58 | G40: 2.6 | H40: 2.59 | I40: 2.58
A42: Load | C42: P' | D42: 1750 | E42: 1700 | F42: 1800
A44: Dry 2P / ( T * D * 3.1416) | D44: =IF(D30=0,0,2*D30/(D12*D10*3.1416)) -> 0 | E44: 0 | F44: 0 | G44: 125.4872578 | H44: 133.960218 | I44: 123.3756364
A45: Average dry strength | C45: S td | D45: =ROUND(SUM(D44:I44)/3,1) -> 127.6
A46: Wet 2P' / (T' * D * 3.1416) | D46: =IF(D40<1,0,ROUND(2*D42/(D40*D10*3.1416),1)) -> 106.7 | E46: 104.1 | F46: 111 | G46: 0 | H46: 0 | I46: 0
A47: Average wet strength | C47: S tm | D47: =ROUND(SUM(D46:I46)/3,1) -> 107.3
A48: 100 S tm / S td ( TSR ) | D48: =ROUND(IF(D45<1,0,100*D47/D45),1) -> 84.1
A49: Visual moisture damage
A50: Crack and break aggregate

Sheet MOIST TEST
C1: MOISTURE IN RECYCLE MIX
A4: TYPE MIX | B4: ='JMF1'!E12 -> OGFC | G4: PROJ. NO. | H4: ='JMF1'!C4 -> 0
C6: Wt. | D6: Wt. After | F6: Percent
B7: Date | C7: Sample (1) | D7: Drying (2) | E7: Diff. (3) | F7: Moisture | G7: Inspector
B8: 2010-10-26 | C8: 1582.4 | D8: 1581.6 | E8: =C8-D8 -> 0.8 | F8: =IF(E8=0,0,E8/C8) -> 0.0005055611729 | G8: =IF(F8=0,0,'JMF1'!$C$63) -> 0
E9: =C9-D9 -> 0 | F9: =IF(E9=0,0,E9/C9) -> 0 | G9: =IF(F9=0,0,'JMF1'!$C$63) -> 0
E10: 0 | F10: 0 | G10: =IF(F10=0,0,'JMF1'!$C$63) -> 0
E11: 0 | F11: 0 | G11: =IF(F11=0,0,'JMF1'!$C$63) -> 0
E12: 0 | F12: 0 | G12: =IF(F12=0,0,'JMF1'!$C$63) -> 0
E13: 0 | F13: 0 | G13: =IF(F13=0,0,'JMF1'!$C$63) -> 0
E14: 0 | F14: 0 | G14: =IF(F14=0,0,'JMF1'!$C$63) -> 0
E15: 0 | F15: 0 | G15: =IF(F15=0,0,'JMF1'!$C$63) -> 0
E16: 0 | F16: 0 | G16: =IF(F16=0,0,'JMF1'!$C$63) -> 0
E17: 0 | F17: 0 | G17: =IF(F17=0,0,'JMF1'!$C$63) -> 0
E18: 0 | F18: 0 | G18: =IF(F18=0,0,'JMF1'!$C$63) -> 0
E19: 0 | F19: 0 | G19: =IF(F19=0,0,'JMF1'!$C$63) -> 0
E20: 0 | F20: 0 | G20: =IF(F20=0,0,'JMF1'!$C$63) -> 0
E21: 0 | F21: 0 | G21: =IF(F21=0,0,'JMF1'!$C$63) -> 0
E22: 0 | F22: 0 | G22: =IF(F22=0,0,'JMF1'!$C$63) -> 0
E23: 0 | F23: 0 | G23: =IF(F23=0,0,'JMF1'!$C$63) -> 0
E24: 0 | F24: 0 | G24: =IF(F24=0,0,'JMF1'!$C$63) -> 0
E25: 0 | F25: 0 | G25: =IF(F25=0,0,'JMF1'!$C$63) -> 0
E26: =C26-D26 -> 0 | F26: 0 | G26: =IF(F26=0,0,'JMF1'!$C$63) -> 0
E27: =C27-D27 -> 0 | F27: 0 | G27: =IF(F27=0,0,'JMF1'!$C$63) -> 0
E28: 0 | F28: 0 | G28: =IF(F28=0,0,'JMF1'!$C$63) -> 0
E29: 0 | F29: 0 | G29: =IF(F29=0,0,'JMF1'!$C$63) -> 0
E30: 0 | F30: 0 | G30: =IF(F30=0,0,'JMF1'!$C$63) -> 0
E31: 0 | F31: 0 | G31: =IF(F31=0,0,'JMF1'!$C$63) -> 0
E32: 0 | F32: 0 | G32: =IF(F32=0,0,'JMF1'!$C$63) -> 0
E33: 0 | F33: 0 | G33: =IF(F33=0,0,'JMF1'!$C$63) -> 0
E34: 0 | F34: 0 | G34: =IF(F34=0,0,'JMF1'!$C$63) -> 0
E35: 0 | F35: 0 | G35: =IF(F35=0,0,'JMF1'!$C$63) -> 0
E36: 0 | F36: 0 | G36: =IF(F36=0,0,'JMF1'!$C$63) -> 0
E37: 0 | F37: 0 | G37: =IF(F37=0,0,'JMF1'!$C$63) -> 0
E38: 0 | F38: 0 | G38: =IF(F38=0,0,'JMF1'!$C$63) -> 0
E39: 0 | F39: 0 | G39: =IF(F39=0,0,'JMF1'!$C$63) -> 0
E40: 0 | F40: 0 | G40: =IF(F40=0,0,'JMF1'!$C$63) -> 0
E41: 0 | F41: 0 | G41: =IF(F41=0,0,'JMF1'!$C$63) -> 0
E42: 0 | F42: 0 | G42: =IF(F42=0,0,'JMF1'!$C$63) -> 0
E43: 0 | F43: 0 | G43: =IF(F43=0,0,'JMF1'!$C$63) -> 0
E44: 0 | F44: 0 | G44: =IF(F44=0,0,'JMF1'!$C$63) -> 0
E45: 0 | F45: 0 | G45: =IF(F45=0,0,'JMF1'!$C$63) -> 0
E46: 0 | F46: 0 | G46: =IF(F46=0,0,'JMF1'!$C$63) -> 0
E47: 0 | F47: 0 | G47: =IF(F47=0,0,'JMF1'!$C$63) -> 0
E48: 0 | F48: 0 | G48: =IF(F48=0,0,'JMF1'!$C$63) -> 0
B51: NOTE: | C51: % Moisture = (3) divided by (1) X 100

Sheet DAILY PLANT REPORT
AT2: 2
C4: STATE OF TENNESSEE
C5: DEPARTMENT OF TRANSPORTATION
C6: DIVISION OF MATERIALS AND TESTS
C7: 6601 CENTENNIAL BLVD.
C8: NASHVILLE, TENNESSEE 37243-0360
C9: Item No. | F9: ='JMF1'!I12 -> 0
C10: State Rt. | F10: ='JMF1'!C7 -> 0 | M10: DAILY REPORT OF ASPHALT PLANT INSPECTION | AD10: Date | AF10: 2017-02-24 | AP10: 3
C11: Report No. | F11: =VLOOKUP(AF10,'RECAP SHEET '!B11:C80,2) -> 1 | M11: UNOFFICIAL (For Calculating SiteManager Inputs Only) | AD11: Region | AF11: ='JMF1'!H4 -> 0 | AP11: =AND(AP10=3) -> TRUE
C12: Reference No. | G12: ='JMF1'!C3 -> 0 | AD12: County | AF12: ='JMF1'!H5 -> 0
C13: Project No. | F13: ='JMF1'!C4 -> 0 | T13: Prime Contractor | Y13: ='JMF1'!C6 -> 0
C14: Air Tem. Min. | L14: Max. | S14: Grading | U14: ='JMF1'!E12 -> OGFC | AC14: Contract No. | AG14: ='JMF1'!C5 -> 0
C15: Make of Plant & Loc.: | I15: ='JMF1'!C8 -> 0 | N15: , | O15: ='JMF1'!H8 -> 0 | T15: Paving Contractor | X15: ='HMA Producers'!E1 -> 0
C16: Tonnes(Tons) | F16: Rap Agg. | J16: =(AH16*(C29+C28)/100) -> 0 | M16: Rap A.C. | P16: =(AH16*C30)/100 -> 0 | S16: Virgin A.C. | U16: =(AH16*C22)/100 -> 24.5483 | W16: Virgin Agg. | AA16: =AH16-U16-P16-J16 -> 326.1417 | AF16: Total Mix | AH16: =VLOOKUP(AF10,'RECAP SHEET '!B11:H129,7) -> 350.69
C17: Stripping Test | G17: =VLOOKUP(Stuff!AL91,Stuff!AL92:AM93,2) -> Good | L17: Dust Coating +4.75 mm (No. 4) Material | U17: ='DUST COATING & FUEL CONT. '!F38 -> 0.004411649879 | AC17: Silicone Used:
C18: Fractured Face Count | I18: =IF(AP10=3,0,IF($AP$10=1,EXTRACTION!D53,'BURNOUT OVEN '!C54)) -> 0 | O18: % Glassy Particles by Weight | V18: =IF(AP10=3,0,IF(AP10=1,EXTRACTION!I53,'BURNOUT OVEN '!F54)) -> 0 | AC18: Moisture in Recycle Mix | AI18: =VLOOKUP(AF10, ' MOIST TEST'!B8:F48,5) -> 0.0005055611729
C20: Percentage A.C. and Cold Feed Bins | M20: Producer and Location | AB20: Mix Temperature
C21: % from J.M.F | G21: Material
C22: ='JMF1'!D28 -> 7 | G22: Virgin A.C. Perf. Grade | J22: ='JMF1'!C24 -> 0 | M22: ='JMF1'!E24 -> 0
A23: 1 | C23: ='JMF1'!I17 -> 93 | G23: ='JMF1'!C17 -> 0 | J23: ='JMF1'!A17 -> 0 | M23: ='JMF1'!E17 -> 0
A24: 2 | C24: ='JMF1'!I18 -> 0 | G24: ='JMF1'!C18 -> 0 | J24: ='JMF1'!A18 -> 0 | M24: ='JMF1'!E18 -> 0
A25: 3 | C25: ='JMF1'!I19 -> 0 | G25: ='JMF1'!C19 -> 0 | J25: ='JMF1'!A19 -> 0 | M25: ='JMF1'!E19 -> 0
A26: 4 | C26: ='JMF1'!I20 -> 0 | G26: ='JMF1'!C20 -> 0 | J26: ='JMF1'!A20 -> 0 | M26: ='JMF1'!E20 -> 0
A27: 5 | C27: ='JMF1'!I21 -> 0 | G27: ='JMF1'!C21 -> 0 | J27: ='JMF1'!A21 -> 0 | M27: ='JMF1'!E21 -> 0
A28: 6 | C28: ='JMF1'!I22-'JMF1'!I22*'JMF1'!C25/100 -> 0 | G28: ='JMF1'!C22 -> 0 | J28: ='JMF1'!A22 -> 0 | M28: ='JMF1'!E22 -> 0
C29: ='JMF1'!I23-'JMF1'!I23*'JMF1'!C26/100 -> 0 | G29: ='JMF1'!C23 -> 0 | J29: ='JMF1'!A23 -> 0 | M29: ='JMF1'!E23 -> 0
C30: ='JMF1'!F28 -> 0 | G30: Total Rap A.C. | J30: ='JMF1'!F28 -> 0
G31: Filler
C32: =SUM(C22:F31) -> 100 | G32: Total
G33: Method Used to Obtain Complete Mix Gradation | V33: Design Number | AB33: Deviation from Burnout Oven Calibration Factor
G34: Belt Sample | L34: Extraction | Q34: Burnout Oven | V34: ='JMF1'!H14 -> 0 | AB34: Target | AD34: ='JMF1'!I35 -> 0.45 | AF34: Weekly Check | AH34: Actual | AJ34: 0.25
G36: Percent Passing Each Sieve | V36: Job Mix Formula Tolerances | AB36: Marshall Properties each 1/2 days production | AN36: plus | AP36: plus | AQ36: minus | AR36: minus
G37: Sample 1 | J37: Sample 2 | M37: Sample 3 | P37: Sample 4 | S37: Sample 5 | AN37: one test | AP37: two or more | AQ37: one test | AR37: two or more | BA37: Belt | BE37: Extraction | BI37: Burnout
C38: 50 mm (2 in.) | G38: =IFERROR(IF($AP$11=TRUE,BA39,IF($AP$10=3,#REF!,IF($AP$10=1,BE39,BI39))),"") -> 0 | J38: =IFERROR(IF($AP$11=TRUE,BB39,IF($AP$10=3,#REF!,IF($AP$10=1,BF39,BJ39))),"") -> 0 | M38: =IFERROR(IF($AP$11=TRUE,BC39,IF($AP$10=3,#REF!,IF($AP$10=1,BG39,BK39))),"") -> 0 | P38: =IFERROR(IF($AP$11=TRUE,BD39,IF($AP$10=3,#REF!,IF($AP$10=1,BH39,BL39))),"") -> 0 | V38: =IF(X38=0,0,IF(J38=0,AQ38,AR38)) -> 0 | X38: ='JMF1'!I45 -> 0 | Y38: =IF(X38=0,0,IF(J38=0,AN38,AP38)) -> 0 | AG38: A.M. | AI38: P.M. | AN38: =IF(X38>93.5,"100",X38+6.5) -> 6.5 | AP38: =IF(X38>94.3,"100",X38+5.7) -> 5.7 | AQ38: =X38-6.5 -> -6.5 | AR38: =X38-5.7 -> -5.7 | BA38: 1 | BB38: 2 | BC38: 3 | BD38: 4 | BE38: 1 | BF38: 2 | BG38: 3 | BH38: 4 | BI38: 1 | BJ38: 2 | BK38: 3 | BL38: 4
C39: 37.5 mm (1-1/2 in.) | G39: =IFERROR(IF($AP$11=TRUE,BA40,IF($AP$10=3,#REF!,IF($AP$10=1,BE40,BI40))),"") -> 0 | J39: =IFERROR(IF($AP$11=TRUE,BB40,IF($AP$10=3,#REF!,IF($AP$10=1,BF40,BJ40))),"") -> 0 | M39: =IFERROR(IF($AP$11=TRUE,BC40,IF($AP$10=3,#REF!,IF($AP$10=1,BG40,BK40))),"") -> 0 | P39: =IFERROR(IF($AP$11=TRUE,BD40,IF($AP$10=3,#REF!,IF($AP$10=1,BH40,BL40))),"") -> 0 | V39: =IF(X39=0,0,IF(J39=0,AQ39,AR39)) -> 0 | X39: ='JMF1'!I46 -> 0 | Y39: =IF(X39=0,0,IF(J39=0,AN39,AP39)) -> 0 | AB39: Voids in Tot. Mix | AG39: ='Marshall Worksheet'!K10 -> 3.4 | AI39: ='Marshall Worksheet'!K26 -> 0 | AN39: 6.5 | AP39: =IF(X39>94.3,"100",X39+5.7) -> 5.7 | AQ39: -6.5 | AR39: =X39-5.7 -> -5.7 | AU39: 50 mm (2 in.) | BA39: ='Ag Belt Samp. + RAP Belt Sample'!J14 -> 0 | BB39: ='Ag Belt Samp. + RAP Belt Sample'!J51 -> 0 | BC39: ='Ag Belt Samp. + RAP Belt Sample'!X14 -> 0 | BD39: ='Ag Belt Samp. + RAP Belt Sample'!X51 -> 0
C40: 31.5 mm (1-1/4 in.) | G40: =IFERROR(IF($AP$11=TRUE,BA41,IF($AP$10=3,#REF!,IF($AP$10=1,BE41,BI41))),"") -> 0 | J40: =IFERROR(IF($AP$11=TRUE,BB41,IF($AP$10=3,#REF!,IF($AP$10=1,BF41,BJ41))),"") -> 0 | M40: =IFERROR(IF($AP$11=TRUE,BC41,IF($AP$10=3,#REF!,IF($AP$10=1,BG41,BK41))),"") -> 0 | P40: =IFERROR(IF($AP$11=TRUE,BD41,IF($AP$10=3,#REF!,IF($AP$10=1,BH41,BL41))),"") -> 0 | V40: =IF(X40=0,0,IF(J40=0,AQ40,AR40)) -> 43.5 | X40: ='JMF1'!I47 -> 50 | Y40: =IF(X40=0,0,IF(J40=0,AN40,AP40)) -> 56.5 | AB40: Gse (Eff S.G. Agg.) | AG40: ='RICE GRAVITY (Gmm)'!D50 -> 2.42052132 | AI40: ='RICE GRAVITY (Gmm)'!N50 -> 0 | AN40: 56.5 | AP40: 55.7 | AQ40: 43.5 | AR40: 44.3 | AU40: 37.5 mm (1-1/2 in.) | BA40: ='Ag Belt Samp. + RAP Belt Sample'!J15 -> 0 | BB40: ='Ag Belt Samp. + RAP Belt Sample'!J52 -> 0 | BC40: ='Ag Belt Samp. + RAP Belt Sample'!X15 -> 0 | BD40: ='Ag Belt Samp. + RAP Belt Sample'!X52 -> 0 | BE40: =EXTRACTION!D34 -> 0 | BF40: =EXTRACTION!I34 -> 0 | BG40: =EXTRACTION!N34 -> 0 | BH40: =EXTRACTION!S34 -> 0 | BI40: ='BURNOUT OVEN '!D13 -> 0 | BJ40: ='BURNOUT OVEN '!K13 -> 0 | BK40: ='BURNOUT OVEN '!R13 -> 0 | BL40: ='BURNOUT OVEN '!Y13 -> 0
C41: 25.0 mm (1 in.) | G41: =IFERROR(IF($AP$11=TRUE,BA42,IF($AP$10=3,#REF!,IF($AP$10=1,BE42,BI42))),"") -> 0 | J41: =IFERROR(IF($AP$11=TRUE,BB42,IF($AP$10=3,#REF!,IF($AP$10=1,BF42,BJ42))),"") -> 0 | M41: =IFERROR(IF($AP$11=TRUE,BC42,IF($AP$10=3,#REF!,IF($AP$10=1,BG42,BK42))),"") -> 0 | P41: =IFERROR(IF($AP$11=TRUE,BD42,IF($AP$10=3,#REF!,IF($AP$10=1,BH42,BL42))),"") -> 0 | V41: 43.5 | X41: ='JMF1'!I48 -> 50 | Y41: 56.5 | AB41: Voids in Min. Agg. | AG41: ='Marshall Worksheet'!L10 -> 15.8 | AI41: ='Marshall Worksheet'!L26 -> 0 | AN41: 56.5 | AP41: 55.7 | AQ41: 43.5 | AR41: 44.3 | AU41: 31.5 mm (1-1/4 in.) | BE41: =EXTRACTION!D35 -> 0 | BF41: =EXTRACTION!I35 -> 0 | BG41: =EXTRACTION!N35 -> 0 | BH41: =EXTRACTION!S35 -> 0 | BI41: ='BURNOUT OVEN '!D14 -> 0 | BJ41: ='BURNOUT OVEN '!K14 -> 0 | BK41: ='BURNOUT OVEN '!R14 -> 0 | BL41: ='BURNOUT OVEN '!Y14 -> 0
C42: 19.0 mm (3/4 in.) | G42: =IFERROR(IF($AP$11=TRUE,BA43,IF($AP$10=3,#REF!,IF($AP$10=1,BE43,BI43))),"") -> 0 | J42: =IFERROR(IF($AP$11=TRUE,BB43,IF($AP$10=3,#REF!,IF($AP$10=1,BF43,BJ43))),"") -> 0 | M42: =IFERROR(IF($AP$11=TRUE,BC43,IF($AP$10=3,#REF!,IF($AP$10=1,BG43,BK43))),"") -> 0 | P42: =IFERROR(IF($AP$11=TRUE,BD43,IF($AP$10=3,#REF!,IF($AP$10=1,BH43,BL43))),"") -> 0 | V42: 43.5 | X42: ='JMF1'!I49 -> 50 | Y42: 56.5 | AB42: Stability | AG42: ='Marshall Worksheet'!O13 -> 2433.333333 | AI42: ='Marshall Worksheet'!L26 -> 0 | AN42: 56.5 | AP42: 55.7 | AQ42: 43.5 | AR42: 44.3 | AU42: 25.0 mm (1 in.) | BE42: =EXTRACTION!D36 -> 0 | BF42: =EXTRACTION!I36 -> 0 | BG42: =EXTRACTION!N36 -> 0 | BH42: =EXTRACTION!S36 -> 0 | BI42: ='BURNOUT OVEN '!D15 -> 0 | BJ42: ='BURNOUT OVEN '!K15 -> 0 | BK42: ='BURNOUT OVEN '!R15 -> 0 | BL42: ='BURNOUT OVEN '!Y15 -> 0
C43: 16.0 mm (5/8 in.) | G43: =IFERROR(IF($AP$11=TRUE,BA44,IF($AP$10=3,#REF!,IF($AP$10=1,BE44,BI44))),"") -> 0 | J43: =IFERROR(IF($AP$11=TRUE,BB44,IF($AP$10=3,#REF!,IF($AP$10=1,BF44,BJ44))),"") -> 0 | M43: =IFERROR(IF($AP$11=TRUE,BC44,IF($AP$10=3,#REF!,IF($AP$10=1,BG44,BK44))),"") -> 0 | P43: =IFERROR(IF($AP$11=TRUE,BD44,IF($AP$10=3,#REF!,IF($AP$10=1,BH44,BL44))),"") -> 0 | V43: 43.5 | X43: ='JMF1'!I50 -> 50 | Y43: 56.5 | AB43: Rice Gravity (Gmm) | AG43: ='RICE GRAVITY (Gmm)'!G40 -> 2.42052132 | AI43: ='RICE GRAVITY (Gmm)'!Q40 -> 0 | AN43: 56.5 | AP43: 55.7 | AQ43: 43.5 | AR43: 44.3 | AU43: 19.0 mm (3/4 in.) | BA43: ='Ag Belt Samp. + RAP Belt Sample'!J16 -> 0 | BB43: ='Ag Belt Samp. + RAP Belt Sample'!J53 -> 0 | BC43: ='Ag Belt Samp. + RAP Belt Sample'!X16 -> 0 | BD43: ='Ag Belt Samp. + RAP Belt Sample'!X53 -> 0 | BE43: =EXTRACTION!D37 -> 0 | BF43: =EXTRACTION!I37 -> 0 | BG43: =EXTRACTION!N37 -> 0 | BH43: =EXTRACTION!S37 -> 0 | BI43: ='BURNOUT OVEN '!D16 -> 84.26466263 | BJ43: ='BURNOUT OVEN '!K16 -> 84.15364415 | BK43: ='BURNOUT OVEN '!R16 -> 84.15364415 | BL43: ='BURNOUT OVEN '!Y16 -> 84.15364415
C44: 12.5 mm (1/2 in.) | G44: =IFERROR(IF($AP$11=TRUE,BA45,IF($AP$10=3,#REF!,IF($AP$10=1,BE45,BI45))),"") -> 0 | J44: =IFERROR(IF($AP$11=TRUE,BB45,IF($AP$10=3,#REF!,IF($AP$10=1,BF45,BJ45))),"") -> 0 | M44: =IFERROR(IF($AP$11=TRUE,BC45,IF($AP$10=3,#REF!,IF($AP$10=1,BG45,BK45))),"") -> 0 | P44: =IFERROR(IF($AP$11=TRUE,BD45,IF($AP$10=3,#REF!,IF($AP$10=1,BH45,BL45))),"") -> 0 | V44: 41.5 | X44: ='JMF1'!I51 -> 48 | Y44: 54.5 | AB44: ANTI STRIPPING AGENT | AN44: 54.5 | AP44: 53.7 | AQ44: 41.5 | AR44: 42.3 | AU44: 16.0 mm (5/8 in.) | BE44: =EXTRACTION!D38 -> 99.99936065 | BF44: =EXTRACTION!I38 -> 99.99931441 | BG44: =EXTRACTION!N38 -> 0 | BH44: =EXTRACTION!S38 -> 0 | BI44: ='BURNOUT OVEN '!D17 -> 0 | BJ44: ='BURNOUT OVEN '!K17 -> 0 | BK44: ='BURNOUT OVEN '!R17 -> 0 | BL44: ='BURNOUT OVEN '!Y17 -> 0
C45: 9.5 mm (3/8 in.) | G45: =IFERROR(IF($AP$11=TRUE,BA46,IF($AP$10=3,#REF!,IF($AP$10=1,BE46,BI46))),"") -> 0 | J45: =IFERROR(IF($AP$11=TRUE,BB46,IF($AP$10=3,#REF!,IF($AP$10=1,BF46,BJ46))),"") -> 0 | M45: =IFERROR(IF($AP$11=TRUE,BC46,IF($AP$10=3,#REF!,IF($AP$10=1,BG46,BK46))),"") -> 0 | P45: =IFERROR(IF($AP$11=TRUE,BD46,IF($AP$10=3,#REF!,IF($AP$10=1,BH46,BL46))),"") -> 0 | V45: 41.5 | X45: ='JMF1'!I52 -> 48 | Y45: 54.5 | AB45: Brand of ASA | AF45: ='JMF1'!D27 -> 0 | AN45: 54.5 | AP45: 53.7 | AQ45: 41.5 | AR45: 42.3 | AU45: 12.5 mm (1/2 in.) | BE45: =EXTRACTION!D39 -> 97.00786395 | BF45: =EXTRACTION!I39 -> 96.26354038 | BG45: =EXTRACTION!N39 -> 0 | BH45: =EXTRACTION!S39 -> 0 | BI45: ='BURNOUT OVEN '!D18 -> 0 | BJ45: ='BURNOUT OVEN '!K18 -> 0 | BK45: ='BURNOUT OVEN '!R18 -> 0 | BL45: ='BURNOUT OVEN '!Y18 -> 0
C46: 4.75 mm (No. 4) | G46: =IFERROR(IF($AP$11=TRUE,BA47,IF($AP$10=3,#REF!,IF($AP$10=1,BE47,BI47))),"") -> 0 | J46: =IFERROR(IF($AP$11=TRUE,BB47,IF($AP$10=3,#REF!,IF($AP$10=1,BF47,BJ47))),"") -> 0 | M46: =IFERROR(IF($AP$11=TRUE,BC47,IF($AP$10=3,#REF!,IF($AP$10=1,BG47,BK47))),"") -> 0 | P46: =IFERROR(IF($AP$11=TRUE,BD47,IF($AP$10=3,#REF!,IF($AP$10=1,BH47,BL47))),"") -> 0 | V46: 43.38 | X46: ='JMF1'!I53 -> 48 | Y46: 52.62 | AB46: % ASA on JMF | AF46: ='JMF1'!I27 -> 0 | AN46: =IF(X46>95.38,"100",X46+4.62) -> 52.62 | AP46: =IF(X46>96,"100",X46+4) -> 52 | AQ46: =X46-4.62 -> 43.38 | AR46: =X46-4 -> 44 | AU46: 9.5 mm (3/8 in.) | BA46: ='Ag Belt Samp. + RAP Belt Sample'!J17 -> 0 | BB46: ='Ag Belt Samp. + RAP Belt Sample'!J54 -> 0 | BC46: ='Ag Belt Samp. + RAP Belt Sample'!X17 -> 0 | BD46: ='Ag Belt Samp. + RAP Belt Sample'!X54 -> 0 | BE46: =EXTRACTION!D40 -> 83.5176779 | BF46: =EXTRACTION!I40 -> 84.77992596 | BG46: =EXTRACTION!N40 -> 0 | BH46: =EXTRACTION!S40 -> 0 | BI46: ='BURNOUT OVEN '!D19 -> 59.41382062 | BJ46: ='BURNOUT OVEN '!K19 -> 59.1274705 | BK46: ='BURNOUT OVEN '!R19 -> 59.1274705 | BL46: ='BURNOUT OVEN '!Y19 -> 59.1274705
C47: 2.36 mm (No. 8) | G47: =IFERROR(IF($AP$11=TRUE,BA48,IF($AP$10=3,#REF!,IF($AP$10=1,BE48,BI48))),"") -> 0 | J47: =IFERROR(IF($AP$11=TRUE,BB48,IF($AP$10=3,#REF!,IF($AP$10=1,BF48,BJ48))),"") -> 0 | M47: =IFERROR(IF($AP$11=TRUE,BC48,IF($AP$10=3,#REF!,IF($AP$10=1,BG48,BK48))),"") -> 0 | P47: =IFERROR(IF($AP$11=TRUE,BD48,IF($AP$10=3,#REF!,IF($AP$10=1,BH48,BL48))),"") -> 0 | V47: 33.2 | X47: ='JMF1'!I54 -> 37 | Y47: 40.8 | AB47: Percent Used | AF47: =IF(Stuff!AN94=2,AF51/(P16+U16),AF51/U16) -> 0.002129475361 | AN47: =IF(X47>96.2,"100",X47+3.8) -> 40.8 | AP47: =IF(X47>96.7,"100",X47+3.3) -> 40.3 | AQ47: =X47-3.8 -> 33.2 | AR47: =X47-3.3 -> 33.7 | AU47: 4.75 mm (No. 4) | BA47: ='Ag Belt Samp. + RAP Belt Sample'!J18 -> 0 | BB47: ='Ag Belt Samp. + RAP Belt Sample'!J55 -> 0 | BC47: ='Ag Belt Samp. + RAP Belt Sample'!X18 -> 0 | BD47: ='Ag Belt Samp. + RAP Belt Sample'!X55 -> 0 | BE47: =EXTRACTION!D41 -> 52.52221725 | BF47: =EXTRACTION!I41 -> 50.79528315 | BG47: =EXTRACTION!N41 -> 0 | BH47: =EXTRACTION!S41 -> 0 | BI47: ='BURNOUT OVEN '!D20 -> 37.56786841 | BJ47: ='BURNOUT OVEN '!K20 -> 37.12738723 | BK47: ='BURNOUT OVEN '!R20 -> 37.12738723 | BL47: ='BURNOUT OVEN '!Y20 -> 37.12738723
C48: 600 mm (No. 30) | G48: =IFERROR(IF($AP$11=TRUE,BA49,IF($AP$10=3,#REF!,IF($AP$10=1,BE49,BI49))),"") -> 0 | J48: =IFERROR(IF($AP$11=TRUE,BB49,IF($AP$10=3,#REF!,IF($AP$10=1,BF49,BJ49))),"") -> 0 | M48: =IFERROR(IF($AP$11=TRUE,BC49,IF($AP$10=3,#REF!,IF($AP$10=1,BG49,BK49))),"") -> 0 | P48: =IFERROR(IF($AP$11=TRUE,BD49,IF($AP$10=3,#REF!,IF($AP$10=1,BH49,BL49))),"") -> 0 | V48: 33.2 | X48: ='JMF1'!I56 -> 37 | Y48: 40.8 | AB48: Gallons Used | AF48: =VLOOKUP(AF10,'RECAP SHEET '!B11:J100,9) -> 12.3 | AN48: =IF(X48>96.2,"100",X48+3.8) -> 40.8 | AP48: =IF(X48>96.7,"100",X48+3.3) -> 40.3 | AQ48: =X48-3.8 -> 33.2 | AR48: =X48-3.3 -> 33.7 | AU48: 2.36 mm (No. 8) | BA48: ='Ag Belt Samp. + RAP Belt Sample'!J19 -> 0 | BB48: ='Ag Belt Samp. + RAP Belt Sample'!J56 -> 0 | BC48: ='Ag Belt Samp. + RAP Belt Sample'!X19 -> 0 | BD48: ='Ag Belt Samp. + RAP Belt Sample'!X56 -> 0 | BE48: =EXTRACTION!D42 -> 40.80941116 | BF48: =EXTRACTION!I42 -> 39.3870835 | BG48: =EXTRACTION!N42 -> 0 | BH48: =EXTRACTION!S42 -> 0 | BI48: ='BURNOUT OVEN '!D21 -> 25.80543903 | BJ48: ='BURNOUT OVEN '!K21 -> 25.28196968 | BK48: ='BURNOUT OVEN '!R21 -> 25.28196968 | BL48: ='BURNOUT OVEN '!Y21 -> 25.28196968
C49: 300 mm (No. 50) | G49: =IFERROR(IF($AP$11=TRUE,BA50,IF($AP$10=3,#REF!,IF($AP$10=1,BE50,BI50))),"") -> 0 | J49: =IFERROR(IF($AP$11=TRUE,BB50,IF($AP$10=3,#REF!,IF($AP$10=1,BF50,BJ50))),"") -> 0 | M49: =IFERROR(IF($AP$11=TRUE,BC50,IF($AP$10=3,#REF!,IF($AP$10=1,BG50,BK50))),"") -> 0 | P49: =IFERROR(IF($AP$11=TRUE,BD50,IF($AP$10=3,#REF!,IF($AP$10=1,BH50,BL50))),"") -> 0 | V49: 21.2 | X49: ='JMF1'!I57 -> 25 | Y49: 28.8 | AB49: Calculated | AF49: =IF(Stuff!AN94=2,(U16+P16)*(AF46*2000)/AF50,U16*(AF46*2000)/AF50) -> 0 | AN49: =IF(X49>96.2,"100",X49+3.8) -> 28.8 | AP49: =IF(X49>96.7,"100",X49+3.3) -> 28.3 | AQ49: =X49-3.8 -> 21.2 | AR49: =X49-3.3 -> 21.7 | AU49: 600 mm (No. 30) | BA49: ='Ag Belt Samp. + RAP Belt Sample'!J28 -> 0 | BB49: ='Ag Belt Samp. + RAP Belt Sample'!J65 -> 0 | BC49: ='Ag Belt Samp. + RAP Belt Sample'!X28 -> 0 | BD49: ='Ag Belt Samp. + RAP Belt Sample'!X65 -> 0 | BE49: =EXTRACTION!D43 -> 29.21808069 | BF49: =EXTRACTION!I43 -> 28.53421089 | BG49: =EXTRACTION!N43 -> 0 | BH49: =EXTRACTION!S43 -> 0 | BI49: ='BURNOUT OVEN '!D22 -> 13.81108863 | BJ49: ='BURNOUT OVEN '!K22 -> 13.20299481 | BK49: ='BURNOUT OVEN '!R22 -> 13.20299481 | BL49: ='BURNOUT OVEN '!Y22 -> 13.20299481
C50: 150 mm (No. 100) | G50: =IFERROR(IF($AP$11=TRUE,BA51,IF($AP$10=3,#REF!,IF($AP$10=1,BE51,BI51))),"") -> 0 | J50: =IFERROR(IF($AP$11=TRUE,BB51,IF($AP$10=3,#REF!,IF($AP$10=1,BF51,BJ51))),"") -> 0 | M50: =IFERROR(IF($AP$11=TRUE,BC51,IF($AP$10=3,#REF!,IF($AP$10=1,BG51,BK51))),"") -> 0 | P50: =IFERROR(IF($AP$11=TRUE,BD51,IF($AP$10=3,#REF!,IF($AP$10=1,BH51,BL51))),"") -> 0 | V50: 23.2 | X50: ='JMF1'!I58 -> 25 | Y50: 26.8 | AB50: Wt. / Per Gal. ASA | AF50: 8.5 | AN50: =IF(X50>98.2,"100",X50+1.8) -> 26.8 | AP50: =IF(X50>98.4,"100",X50+1.6) -> 26.6 | AQ50: =X50-1.8 -> 23.2 | AR50: =X50-1.6 -> 23.4 | AU50: 300 mm (No. 50) | BA50: ='Ag Belt Samp. + RAP Belt Sample'!J29 -> 0 | BB50: ='Ag Belt Samp. + RAP Belt Sample'!J66 -> 0 | BC50: ='Ag Belt Samp. + RAP Belt Sample'!X29 -> 0 | BD50: ='Ag Belt Samp. + RAP Belt Sample'!X66 -> 0 | BE50: =EXTRACTION!D44 -> 15.72789464 | BF50: =EXTRACTION!I44 -> 15.06924448 | BG50: =EXTRACTION!N44 -> 0 | BH50: =EXTRACTION!S44 -> 0 | BI50: ='BURNOUT OVEN '!D23 -> 9.591134325 | BJ50: ='BURNOUT OVEN '!K23 -> 8.953267213 | BK50: ='BURNOUT OVEN '!R23 -> 8.953267213 | BL50: ='BURNOUT OVEN '!Y23 -> 8.953267213
C51: 75 mm (No. 200) | G51: =IFERROR(IF($AP$11=TRUE,BA52,IF($AP$10=3,#REF!,IF($AP$10=1,BE52,BI52))),"") -> 0 | J51: =IFERROR(IF($AP$11=TRUE,BB52,IF($AP$10=3,#REF!,IF($AP$10=1,BF52,BJ52))),"") -> 0 | M51: =IFERROR(IF($AP$11=TRUE,BC52,IF($AP$10=3,#REF!,IF($AP$10=1,BG52,BK52))),"") -> 0 | P51: =IFERROR(IF($AP$11=TRUE,BD52,IF($AP$10=3,#REF!,IF($AP$10=1,BH52,BL52))),"") -> 0 | V51: 8.2 | X51: ='JMF1'!I59 -> 10 | Y51: 11.8 | AB51: Tons of ASA | AF51: =(AF48*AF50)/2000 -> 0.052275 | AN51: =IF(X51>98.2,"100",X51+1.8) -> 11.8 | AP51: =IF(X51>98.4,"100",X51+1.6) -> 11.6 | AQ51: =X51-1.8 -> 8.2 | AR51: =X51-1.6 -> 8.4 | AU51: 150 mm (No. 100) | BA51: ='Ag Belt Samp. + RAP Belt Sample'!J30 -> 0 | BB51: ='Ag Belt Samp. + RAP Belt Sample'!J67 -> 0 | BC51: ='Ag Belt Samp. + RAP Belt Sample'!X30 -> 0 | BD51: ='Ag Belt Samp. + RAP Belt Sample'!X67 -> 0 | BE51: =EXTRACTION!D45 -> 7.365257976 | BF51: =EXTRACTION!I45 -> 6.677636089 | BG51: =EXTRACTION!N45 -> 0 | BH51: =EXTRACTION!S45 -> 0 | BI51: ='BURNOUT OVEN '!D24 -> 6.177861847 | BJ51: ='BURNOUT OVEN '!K24 -> 5.515912869 | BK51: ='BURNOUT OVEN '!R24 -> 5.515912869 | BL51: ='BURNOUT OVEN '!Y24 -> 5.515912869
F52: % A.C. | G52: =IF($AP$10=3,0,IF($AP$10=1,EXTRACTION!G27,'BURNOUT OVEN '!E45)) -> 0 | J52: =IF($AP$10=3,0,IF($AP$10=1,EXTRACTION!I27,'BURNOUT OVEN '!L45)) -> 0 | M52: =IF($AP$10=3,0,IF($AP$10=1,EXTRACTION!Q27,'BURNOUT OVEN '!S45)) -> 0 | P52: =IF($AP$10=3,0,IF($AP$10=1,EXTRACTION!S27,'BURNOUT OVEN '!Z45)) -> 0 | V52: 6.7 | X52: ='JMF1'!G25 -> 7 | Y52: 7.3 | AB52: Rotational Viscosity | AG52: 1200 | AN52: =(X52+0.3) -> 7.3 | AP52: =(X52+0.25) -> 7.25 | AQ52: =X52-0.3 -> 6.7 | AR52: =X52-0.25 -> 6.75 | AU52: 75 mm (No. 200) | BA52: ='Ag Belt Samp. + RAP Belt Sample'!J31 -> 0 | BB52: ='Ag Belt Samp. + RAP Belt Sample'!J68 -> 0 | BC52: ='Ag Belt Samp. + RAP Belt Sample'!X31 -> 0 | BD52: ='Ag Belt Samp. + RAP Belt Sample'!X68 -> 0 | BE52: =EXTRACTION!D46 -> 5.600664919 | BF52: =EXTRACTION!I46 -> 4.984231455 | BG52: =EXTRACTION!N46 -> 0 | BH52: =EXTRACTION!S46 -> 0 | BI52: ='BURNOUT OVEN '!D25 -> 2.981385111 | BJ52: ='BURNOUT OVEN '!K25 -> 2.296883838 | BK52: ='BURNOUT OVEN '!R25 -> 2.296883838 | BL52: ='BURNOUT OVEN '!Y25 -> 2.296883838
C53: D.A.R. | G53: =IF($AP$10=3,0,IF($AP$10=1,EXTRACTION!D49,'BURNOUT OVEN '!B29)) -> 0 | J53: =IF($AP$10=3,0,IF($AP$10=1,EXTRACTION!I49,'BURNOUT OVEN '!I29)) -> 0 | M53: =IF($AP$10=3,0,IF($AP$10=1,EXTRACTION!N49,'BURNOUT OVEN '!P29)) -> 0 | P53: =IF($AP$10=3,0,IF($AP$10=1,EXTRACTION!S49,'BURNOUT OVEN '!W29)) -> 0 | W53: =VLOOKUP(Stuff!C1,Stuff!A2:W16,23) -> 0 | AB53: LOI Target | AE53: ='JMF1'!C35 -> 5 | AG53: Actual LOI | AJ53: ='LOI '!F41 -> 3.795066414 | AU53: %AC
C55: Random numbers: | G55: =ROUND('Random Number'!H14,0)&" Tons" -> 347 Tons | J55: =ROUND('Random Number'!H15,0)&" Tons" -> 1139 Tons | M55: =ROUND('Random Number'!H16,0)&" Tons" -> 2000 Tons | P55: =ROUND('Random Number'!H17,0)&" Tons" -> 3000 Tons | AB55: =VLOOKUP(Stuff!AN94,Stuff!AN95:AO96,2) -> Anti-strip based on virgin A.C
C56: Remarks: | F56: kkkkkkkkkkkkkkkkkkkkkkkkkkkkkkkkkkkkkkkkkkkkkkkkkkkkkkkkkkkkkkkkkkkkkkkkkkkkkkkkkkkkkkkkkkkkkkkkkkkkkkkkkkkkkkkkkkkkkkkkkkkkkkkkkkkkkkkkkkkkkkkkkkkkkkkkkkkkkkkkkk
K61: `
S62: Signed | U62: ='JMF1'!C63 -> 0
S63: Title | U63: ='JMF1'!G63 -> 0

Sheet TANK RECORD A.C.
C1: TANK RECORD OF A.C. RECEIVED
A3: Type Mix | B3: ='JMF1'!E12 -> OGFC | F3: Item No. | G3: ='JMF1'!I12 -> 0
A5: Contr.No. | B5: ='JMF1'!C5 -> 0 | F5: Project No. | G5: ='JMF1'!C4 -> 0
B7: Tank | C7: Gross | D7: Tare | E7: Net | F7: Net | G7: Accum. | H7: Invoice
A8: Date | B8: No. | C8: Wt. | D8: Wt. | E8: Wt. | F8: Tons | G8: Tons | H8: No.
E9: =C9-D9 -> 0 | F9: =E9/2000 -> 0 | G9: =IF(F9=0,0,F9) -> 0
E10: =C10-D10 -> 0 | F10: =E10/2000 -> 0 | G10: =IF(F10=0,0,G9+F10) -> 0
E11: 0 | F11: 0 | G11: =IF(F11=0,0,G10+F11) -> 0
E12: 0 | F12: 0 | G12: 0
E13: 0 | F13: 0 | G13: 0
E14: 0 | F14: 0 | G14: 0
E15: 0 | F15: 0 | G15: 0
E16: 0 | F16: 0 | G16: 0
E17: 0 | F17: 0 | G17: 0
E18: 0 | F18: 0 | G18: 0
E19: 0 | F19: 0 | G19: 0
E20: 0 | F20: 0 | G20: 0
E21: 0 | F21: 0 | G21: 0
E22: 0 | F22: 0 | G22: 0
E23: 0 | F23: 0 | G23: 0
E24: 0 | F24: 0 | G24: 0
E25: 0 | F25: 0 | G25: 0
E26: 0 | F26: 0 | G26: 0
E27: 0 | F27: 0 | G27: 0
E28: 0 | F28: 0 | G28: 0
E29: 0 | F29: 0 | G29: 0
E30: 0 | F30: 0 | G30: 0
E31: 0 | F31: 0 | G31: 0
E32: 0 | F32: 0 | G32: 0
E33: 0 | F33: 0 | G33: 0
E34: 0 | F34: 0 | G34: 0
E35: 0 | F35: 0 | G35: 0
E36: 0 | F36: 0 | G36: 0
E37: 0 | F37: 0 | G37: 0
E38: 0 | F38: 0 | G38: 0
H39: page 1
C40: TANK RECORD OF A.C. RECEIVED
A42: Type Mix | B42: =B3 -> OGFC | F42: Item No. | G42: =G3 -> 0
A44: Contr.No. | B44: =B5 -> 0 | F44: Project No. | G44: =G5 -> 0
B46: Tank | C46: Gross | D46: Tare | E46: Net | F46: Net | G46: Accum. | H46: Invoice
A47: Date | B47: No. | C47: Wt. | D47: Wt. | E47: Wt. | F47: Tons | G47: Tons | H47: No.
E48: =C48-D48 -> 0 | F48: =E48/2000 -> 0 | G48: =IF(F48=0,0,F48+G38) -> 0
E49: =C49-D49 -> 0 | F49: =E49/2000 -> 0 | G49: =IF(F49=0,0,G48+F49) -> 0
E50: 0 | F50: 0 | G50: =IF(F50=0,0,G49+F50) -> 0
E51: 0 | F51: 0 | G51: 0
E52: 0 | F52: 0 | G52: 0
E53: 0 | F53: 0 | G53: 0
E54: 0 | F54: 0 | G54: 0
E55: 0 | F55: 0 | G55: 0
E56: 0 | F56: 0 | G56: 0
E57: 0 | F57: 0 | G57: 0
E58: 0 | F58: 0 | G58: 0
E59: 0 | F59: 0 | G59: 0
E60: 0 | F60: 0 | G60: 0
E61: 0 | F61: 0 | G61: 0
E62: 0 | F62: 0 | G62: 0
E63: 0 | F63: 0 | G63: 0
E64: 0 | F64: 0 | G64: 0
E65: 0 | F65: 0 | G65: 0
E66: 0 | F66: 0 | G66: 0
E67: 0 | F67: 0 | G67: 0
E68: 0 | F68: 0 | G68: 0
E69: 0 | F69: 0 | G69: 0
E70: 0 | F70: 0 | G70: 0
E71: 0 | F71: 0 | G71: 0
E72: 0 | F72: 0 | G72: 0
E73: 0 | F73: 0 | G73: 0
E74: 0 | F74: 0 | G74: 0
E75: 0 | F75: 0 | G75: 0
E76: 0 | F76: 0 | G76: 0
H77: page 2
Y105: 8

Sheet RECAP SHEET
A3: Item No. | C3: ='JMF1'!I12 -> 0 | G3: Contr. No. | I3: ='JMF1'!C5 -> 0
A4: Type Mix | C4: ='JMF1'!E12 -> OGFC | G4: Project No. | I4: ='JMF1'!C4 -> 0
A5: % A.C. in mix | C5: ='JMF1'!G25 -> 7 | L5: page 1
A6: % Virgin A.C. | C6: ='JMF1'!D28 -> 7
A7: % Rap A.C. | C7: ='JMF1'!F28 -> 0 | E7: Design No. | F7: ='JMF1'!H14 -> 0 | I7: T.D.O.T. Insp.: | K7: ='JMF1'!C63 -> 0
A8: Ticket Book No. | B8: Date | C8: Rept. No. | D8: Tons of Virgin Aggregate | E8: Accum. Tons of Mineral Aggreate | F8: Total Tons of A.C. | G8: Accumulated Tons of A.C. | H8: Total Tons of Mix | I8: Accumulated Tons of Mix | J8: Total Gallons of Anti-Strip | K8: Accumlated Gallons of Anti-Strip | L8: Virgin A.C. | M8: Accumlated Virgin A.C. | N8: Total R.A.P. A.C. | O8: Total R.A.P Aggregate
A11: 1 | B11: 2017-02-24 | C11: 1 | D11: =H11-F11-O11 -> 326.1417 | E11: =D11+O11 -> 326.1417 | F11: =H11*$C$5/100 -> 24.5483 | G11: =F11 -> 24.5483 | H11: 350.69 | I11: =H11 -> 350.69 | J11: 12.3 | K11: =J11 -> 12.3 | L11: =H11*$C$6/100 -> 24.5483 | M11: =L11 -> 24.5483 | N11: =($C$7*H11)/100 -> 0 | O11: =H11*('JMF1'!$I$22+'JMF1'!$I$23)/100-'RECAP SHEET '!N11 -> 0
D12: =H12-F12-O12 -> 0 | E12: =IF(D12=0,0,D12+E11+O12) -> 0 | F12: =H12*$C$5/100 -> 0 | G12: =IF(F12=0,0,F12+G11) -> 0 | I12: =IF(H12=0,0,H12+I11) -> 0 | K12: =IF(J12=0,0,J12+K11) -> 0 | L12: =H12*$C$6/100 -> 0 | M12: =IF(L12=0,0,L12+M11) -> 0 | N12: =($C$7*H12)/100 -> 0 | O12: =H12*('JMF1'!$I$22+'JMF1'!$I$23)/100-'RECAP SHEET '!N12 -> 0
D13: 0 | E13: =IF(D13=0,0,D13+E12+O13) -> 0 | F13: 0 | G13: 0 | I13: 0 | K13: 0 | L13: 0 | M13: 0 | N13: 0 | O13: =H13*('JMF1'!$I$22+'JMF1'!$I$23)/100-'RECAP SHEET '!N13 -> 0
D14: 0 | E14: 0 | F14: 0 | G14: 0 | I14: 0 | K14: 0 | L14: 0 | M14: 0 | N14: 0 | O14: =H14*('JMF1'!$I$22+'JMF1'!$I$23)/100-'RECAP SHEET '!N14 -> 0
D15: 0 | E15: 0 | F15: 0 | G15: 0 | I15: 0 | K15: 0 | L15: 0 | M15: 0 | N15: 0 | O15: =H15*('JMF1'!$I$22+'JMF1'!$I$23)/100-'RECAP SHEET '!N15 -> 0
D16: 0 | E16: 0 | F16: 0 | G16: 0 | I16: 0 | K16: 0 | L16: 0 | M16: 0 | N16: 0 | O16: =H16*('JMF1'!$I$22+'JMF1'!$I$23)/100-'RECAP SHEET '!N16 -> 0
D17: 0 | E17: 0 | F17: 0 | G17: 0 | I17: 0 | K17: 0 | L17: 0 | M17: 0 | N17: 0 | O17: =H17*('JMF1'!$I$22+'JMF1'!$I$23)/100-'RECAP SHEET '!N17 -> 0
D18: 93 | E18: 93 | F18: 7 | G18: 7 | H18: 100 | I18: 100 | K18: 0 | L18: 7 | M18: 7 | N18: 0 | O18: =H18*('JMF1'!$I$22+'JMF1'!$I$23)/100-'RECAP SHEET '!N18 -> 0
D19: 0 | E19: 0 | F19: 0 | G19: 0 | I19: 0 | K19: 0 | L19: 0 | M19: 0 | N19: 0 | O19: =H19*('JMF1'!$I$22+'JMF1'!$I$23)/100-'RECAP SHEET '!N19 -> 0
D20: 0 | E20: 0 | F20: 0 | G20: 0 | I20: 0 | K20: 0 | L20: 0 | M20: 0 | N20: 0 | O20: =H20*('JMF1'!$I$22+'JMF1'!$I$23)/100-'RECAP SHEET '!N20 -> 0
D21: 0 | E21: 0 | F21: 0 | G21: 0 | I21: 0 | K21: 0 | L21: 0 | M21: 0 | N21: 0 | O21: =H21*('JMF1'!$I$22+'JMF1'!$I$23)/100-'RECAP SHEET '!N21 -> 0
D22: 0 | E22: 0 | F22: 0 | G22: 0 | I22: 0 | K22: 0 | L22: 0 | M22: 0 | N22: 0 | O22: =H22*('JMF1'!$I$22+'JMF1'!$I$23)/100-'RECAP SHEET '!N22 -> 0
D23: 0 | E23: 0 | F23: 0 | G23: 0 | I23: 0 | K23: 0 | L23: 0 | M23: 0 | N23: 0 | O23: =H23*('JMF1'!$I$22+'JMF1'!$I$23)/100-'RECAP SHEET '!N23 -> 0
D24: 0 | E24: 0 | F24: 0 | G24: 0 | I24: 0 | K24: 0 | L24: 0 | M24: 0 | N24: 0 | O24: =H24*('JMF1'!$I$22+'JMF1'!$I$23)/100-'RECAP SHEET '!N24 -> 0
D25: 0 | E25: 0 | F25: 0 | G25: 0 | I25: 0 | J25: 1 | K25: 1 | L25: 0 | M25: 0 | N25: 0 | O25: =H25*('JMF1'!$I$22+'JMF1'!$I$23)/100-'RECAP SHEET '!N25 -> 0
A27: Totals from page 1 | E27: =SUM(D11:D25) -> 419.1417 | G27: =SUM(F11:F25) -> 31.5483 | I27: =SUM(H11:H25) -> 450.69 | K27: =SUM(J11:J25) -> 13.3 | M27: =SUM(L11:L25) -> 31.5483
A28: Item No. | C28: =C3 -> 0 | G28: Contr. No. | I28: =I3 -> 0
A29: Type Mix | C29: =C4 -> OGFC | G29: Project No. | I29: =I4 -> 0
A30: % A.C. in mix | C30: =C5 -> 7 | L30: page 2
A31: % Virgin A.C. | C31: =C6 -> 7
A32: % Rap A.C. | C32: =C7 -> 0 | E32: Design No. | F32: =F7 -> 0 | I32: T.D.O.T. Insp.: | K32: =K7 -> 0
A33: Ticket Book No. | B33: Date | C33: Rept. No. | D33: Tons of Virgin Aggregate | E33: Accum. Tons of Mineral Aggreate | F33: Total Tons of A.C. | G33: Accumulated Tons of A.C. | H33: Total Tons of Mix | I33: Accumulated Tons of Mix | J33: Total Gallons of Anti-Strip | K33: Accumlated Gallons of Anti-Strip | L33: Virgin A.C. | M33: Accumlated Virgin A.C. | N33: R.A.P. A.C. | O33: R.A.P Aggregate
D36: =H36-F36-O36 -> 0 | E36: =IF(D36=0,0,D36+E35+O36) -> 0 | F36: =H36*$C$5/100 -> 0 | G36: =F36 -> 0 | I36: =H36 -> 0 | K36: =J36 -> 0 | L36: =H36*$C$6/100 -> 0 | M36: =L36 -> 0 | N36: =($C$7*H36)/100 -> 0 | O36: =H36*('JMF1'!$I$22+'JMF1'!$I$23)/100-'RECAP SHEET '!N36 -> 0
D37: =H37-F37-O37 -> 0 | E37: 0 | F37: =H37*$C$5/100 -> 0 | G37: =IF(F37=0,0,F37+G36) -> 0 | I37: =IF(H37=0,0,H37+I36) -> 0 | K37: =IF(J37=0,0,J37+K36) -> 0 | L37: =H37*$C$6/100 -> 0 | M37: =IF(L37=0,0,L37+M36) -> 0 | N37: =($C$7*H37)/100 -> 0 | O37: =H37*('JMF1'!$I$22+'JMF1'!$I$23)/100-'RECAP SHEET '!N37 -> 0
D38: 0 | E38: 0 | F38: 0 | G38: 0 | I38: 0 | K38: 0 | L38: 0 | M38: 0 | N38: 0 | O38: =H38*('JMF1'!$I$22+'JMF1'!$I$23)/100-'RECAP SHEET '!N38 -> 0
D39: 0 | E39: 0 | F39: 0 | G39: 0 | I39: 0 | K39: 0 | L39: 0 | M39: 0 | N39: 0 | O39: =H39*('JMF1'!$I$22+'JMF1'!$I$23)/100-'RECAP SHEET '!N39 -> 0
D40: 0 | E40: 0 | F40: 0 | G40: 0 | I40: 0 | K40: 0 | L40: 0 | M40: 0 | N40: 0 | O40: =H40*('JMF1'!$I$22+'JMF1'!$I$23)/100-'RECAP SHEET '!N40 -> 0
D41: 0 | E41: 0 | F41: 0 | G41: 0 | I41: 0 | K41: 0 | L41: 0 | M41: 0 | N41: 0 | O41: =H41*('JMF1'!$I$22+'JMF1'!$I$23)/100-'RECAP SHEET '!N41 -> 0
D42: 0 | E42: 0 | F42: 0 | G42: 0 | I42: 0 | K42: 0 | L42: 0 | M42: 0 | N42: 0 | O42: =H42*('JMF1'!$I$22+'JMF1'!$I$23)/100-'RECAP SHEET '!N42 -> 0
D43: 0 | E43: 0 | F43: 0 | G43: 0 | I43: 0 | K43: 0 | L43: 0 | M43: 0 | N43: 0 | O43: =H43*('JMF1'!$I$22+'JMF1'!$I$23)/100-'RECAP SHEET '!N43 -> 0
D44: 0 | E44: 0 | F44: 0 | G44: 0 | I44: 0 | K44: 0 | L44: 0 | M44: 0 | N44: 0 | O44: =H44*('JMF1'!$I$22+'JMF1'!$I$23)/100-'RECAP SHEET '!N44 -> 0
D45: 465 | E45: 465 | F45: 35 | G45: 35 | H45: 500 | I45: 500 | K45: 0 | L45: 35 | M45: 35 | N45: 0 | O45: =H45*('JMF1'!$I$22+'JMF1'!$I$23)/100-'RECAP SHEET '!N45 -> 0
D46: 0 | E46: 0 | F46: 0 | G46: 0 | I46: 0 | K46: 0 | L46: 0 | M46: 0 | N46: 0 | O46: =H46*('JMF1'!$I$22+'JMF1'!$I$23)/100-'RECAP SHEET '!N46 -> 0
D47: 0 | E47: 0 | F47: 0 | G47: 0 | I47: 0 | J47: 1 | K47: 1 | L47: 0 | M47: 0 | N47: 0 | O47: =H47*('JMF1'!$I$22+'JMF1'!$I$23)/100-'RECAP SHEET '!N47 -> 0
D48: 0 | E48: 0 | F48: 0 | G48: 0 | I48: 0 | K48: 0 | L48: 0 | M48: 0 | N48: 0 | O48: =H48*('JMF1'!$I$22+'JMF1'!$I$23)/100-'RECAP SHEET '!N48 -> 0
D49: 0 | E49: 0 | F49: 0 | G49: 0 | I49: 0 | K49: 0 | L49: 0 | M49: 0 | N49: 0 | O49: =H49*('JMF1'!$I$22+'JMF1'!$I$23)/100-'RECAP SHEET '!N49 -> 0
D50: 0 | E50: 0 | F50: 0 | G50: 0 | I50: 0 | K50: 0 | L50: 0 | M50: 0 | N50: 0 | O50: =H50*('JMF1'!$I$22+'JMF1'!$I$23)/100-'RECAP SHEET '!N50 -> 0
A52: Totals from page 1, 2 | E52: =SUM(D36:D50)+E27 -> 884.1417 | G52: =SUM(F36:F50)+G27 -> 66.5483 | I52: =SUM(H36:H50)+I27 -> 950.69 | K52: =SUM(J36:J50)+K27 -> 14.3 | M52: =SUM(L36:L50)+M27 -> 66.5483
A53: Item No. | C53: =C28 -> 0 | G53: Contr. No. | I53: =I28 -> 0
A54: Type Mix | C54: =C29 -> OGFC | G54: Project No. | I54: =I29 -> 0
A55: % A.C. in mix | C55: =C30 -> 7 | L55: page 3
A56: % Virgin A.C. | C56: =C31 -> 7
A57: % Rap A.C. | C57: =C32 -> 0 | E57: Design No. | F57: =F32 -> 0 | I57: T.D.O.T. Insp.: | K57: =K32 -> 0
A58: Ticket Book No. | B58: Date | C58: Rept. No. | D58: Tons of Virgin Aggregate | E58: Accum. Tons of Mineral Aggreate | F58: Total Tons of A.C. | G58: Accumulated Tons of A.C. | H58: Total Tons of Mix | I58: Accumulated Tons of Mix | J58: Total Gallons of Anti-Strip | K58: Accumlated Gallons of Anti-Strip | L58: Virgin A.C. | M58: Accumlated Virgin A.C. | N58: R.A.P. A.C. | O58: R.A.P Aggregate
D61: =H61-F61-O61 -> 0 | E61: =IF(D61=0,0,D61+E60+O61) -> 0 | F61: =H61*$C$5/100 -> 0 | G61: =F61 -> 0 | I61: =H61 -> 0 | K61: =J61 -> 0 | L61: =H61*$C$6/100 -> 0 | M61: =L61 -> 0 | N61: =($C$7*H61)/100 -> 0 | O61: =H61*('JMF1'!$I$22+'JMF1'!$I$23)/100-'RECAP SHEET '!N61 -> 0
D62: =H62-F62-O62 -> 0 | E62: 0 | F62: =H62*$C$5/100 -> 0 | G62: =IF(F62=0,0,F62+G61) -> 0 | I62: =IF(H62=0,0,H62+I61) -> 0 | K62: =IF(J62=0,0,J62+K61) -> 0 | L62: =H62*$C$6/100 -> 0 | M62: =IF(L62=0,0,L62+M61) -> 0 | N62: =($C$7*H62)/100 -> 0 | O62: =H62*('JMF1'!$I$22+'JMF1'!$I$23)/100-'RECAP SHEET '!N62 -> 0
D63: 0 | E63: 0 | F63: 0 | G63: 0 | I63: 0 | K63: 0 | L63: 0 | M63: 0 | N63: 0 | O63: =H63*('JMF1'!$I$22+'JMF1'!$I$23)/100-'RECAP SHEET '!N63 -> 0
D64: 0 | E64: 0 | F64: 0 | G64: 0 | I64: 0 | K64: 0 | L64: 0 | M64: 0 | N64: 0 | O64: =H64*('JMF1'!$I$22+'JMF1'!$I$23)/100-'RECAP SHEET '!N64 -> 0
D65: 0 | E65: 0 | F65: 0 | G65: 0 | I65: 0 | K65: 0 | L65: 0 | M65: 0 | N65: 0 | O65: =H65*('JMF1'!$I$22+'JMF1'!$I$23)/100-'RECAP SHEET '!N65 -> 0
D66: 0 | E66: 0 | F66: 0 | G66: 0 | I66: 0 | K66: 0 | L66: 0 | M66: 0 | N66: 0 | O66: =H66*('JMF1'!$I$22+'JMF1'!$I$23)/100-'RECAP SHEET '!N66 -> 0
D67: 0 | E67: 0 | F67: 0 | G67: 0 | I67: 0 | K67: 0 | L67: 0 | M67: 0 | N67: 0 | O67: =H67*('JMF1'!$I$22+'JMF1'!$I$23)/100-'RECAP SHEET '!N67 -> 0
D68: 0 | E68: 0 | F68: 0 | G68: 0 | I68: 0 | K68: 0 | L68: 0 | M68: 0 | N68: 0 | O68: =H68*('JMF1'!$I$22+'JMF1'!$I$23)/100-'RECAP SHEET '!N68 -> 0
D69: 0 | E69: 0 | F69: 0 | G69: 0 | I69: 0 | K69: 0 | L69: 0 | M69: 0 | N69: 0 | O69: =H69*('JMF1'!$I$22+'JMF1'!$I$23)/100-'RECAP SHEET '!N69 -> 0
D70: 0 | E70: 0 | F70: 0 | G70: 0 | I70: 0 | K70: 0 | L70: 0 | M70: 0 | N70: 0 | O70: =H70*('JMF1'!$I$22+'JMF1'!$I$23)/100-'RECAP SHEET '!N70 -> 0
D71: 0 | E71: 0 | F71: 0 | G71: 0 | I71: 0 | K71: 0 | L71: 0 | M71: 0 | N71: 0 | O71: =H71*('JMF1'!$I$22+'JMF1'!$I$23)/100-'RECAP SHEET '!N71 -> 0
D72: 465 | E72: 465 | F72: 35 | G72: 35 | H72: 500 | I72: 500 | K72: 0 | L72: 35 | M72: 35 | N72: 0 | O72: =H72*('JMF1'!$I$22+'JMF1'!$I$23)/100-'RECAP SHEET '!N72 -> 0
D73: 0 | E73: 0 | F73: 0 | G73: 0 | I73: 0 | J73: 2 | K73: 2 | L73: 0 | M73: 0 | N73: 0 | O73: =H73*('JMF1'!$I$22+'JMF1'!$I$23)/100-'RECAP SHEET '!N73 -> 0
D74: 0 | E74: 0 | F74: 0 | G74: 0 | I74: 0 | K74: 0 | L74: 0 | M74: 0 | N74: 0 | O74: =H74*('JMF1'!$I$22+'JMF1'!$I$23)/100-'RECAP SHEET '!N74 -> 0
D75: 0 | E75: 0 | F75: 0 | G75: 0 | I75: 0 | K75: 0 | L75: 0 | M75: 0 | N75: 0 | O75: =H75*('JMF1'!$I$22+'JMF1'!$I$23)/100-'RECAP SHEET '!N75 -> 0
A77: Totals from page 1, 2, 3 | E77: =SUM(D61:D75)+E52 -> 1349.1417 | G77: =SUM(F61:F75)+G52 -> 101.5483 | I77: =SUM(H61:H75)+I52 -> 1450.69 | K77: =SUM(J61:J75)+K52 -> 16.3 | M77: =SUM(L61:L75)+M52 -> 101.5483
A78: Item No. | C78: =C53 -> 0 | G78: Contr. No. | I78: =I53 -> 0
A79: Type Mix | C79: =C54 -> OGFC | G79: Project No. | I79: =I54 -> 0
A80: % A.C. in mix | C80: =C55 -> 7 | L80: page 4
A81: % Virgin A.C. | C81: =C56 -> 7
A82: % Rap A.C. | C82: =C57 -> 0 | E82: Design No. | F82: =F57 -> 0 | I82: T.D.O.T. Insp.: | K82: =K57 -> 0
A83: Ticket Book No. | B83: Date | C83: Rept. No. | D83: Tons of Virgin Aggregate | E83: Accum. Tons of Mineral Aggreate | F83: Total Tons of A.C. | G83: Accumulated Tons of A.C. | H83: Total Tons of Mix | I83: Accumulated Tons of Mix | J83: Total Gallons of Anti-Strip | K83: Accumlated Gallons of Anti-Strip | L83: Virgin A.C. | M83: Accumlated Virgin A.C. | N83: R.A.P. A.C. | O83: R.A.P Aggregate
D86: =H86-F86-O86 -> 0 | E86: =IF(D86=0,0,D86+E85+O86) -> 0 | F86: =H86*$C$5/100 -> 0 | G86: =F86 -> 0 | I86: =H86 -> 0 | K86: =J86 -> 0 | L86: =H86*$C$6/100 -> 0 | M86: =L86 -> 0 | N86: =($C$7*H86)/100 -> 0 | O86: =H86*('JMF1'!$I$22+'JMF1'!$I$23)/100-'RECAP SHEET '!N86 -> 0
D87: =H87-F87-O87 -> 0 | E87: 0 | F87: =H87*$C$5/100 -> 0 | G87: =IF(F87=0,0,F87+G86) -> 0 | I87: =IF(H87=0,0,H87+I86) -> 0 | K87: =IF(J87=0,0,J87+K86) -> 0 | L87: =H87*$C$6/100 -> 0 | M87: =IF(L87=0,0,L87+M86) -> 0 | N87: =($C$7*H87)/100 -> 0 | O87: =H87*('JMF1'!$I$22+'JMF1'!$I$23)/100-'RECAP SHEET '!N87 -> 0
D88: 0 | E88: 0 | F88: 0 | G88: 0 | I88: 0 | K88: 0 | L88: 0 | M88: 0 | N88: 0 | O88: =H88*('JMF1'!$I$22+'JMF1'!$I$23)/100-'RECAP SHEET '!N88 -> 0
D89: 930 | E89: 930 | F89: 70 | G89: 70 | H89: 1000 | I89: 1000 | J89: 1 | K89: 1 | L89: 70 | M89: 70 | N89: 0 | O89: =H89*('JMF1'!$I$22+'JMF1'!$I$23)/100-'RECAP SHEET '!N89 -> 0
D90: 0 | E90: 0 | F90: 0 | G90: 0 | I90: 0 | K90: 0 | L90: 0 | M90: 0 | N90: 0 | O90: =H90*('JMF1'!$I$22+'JMF1'!$I$23)/100-'RECAP SHEET '!N90 -> 0
D91: 0 | E91: 0 | F91: 0 | G91: 0 | I91: 0 | K91: 0 | L91: 0 | M91: 0 | N91: 0 | O91: =H91*('JMF1'!$I$22+'JMF1'!$I$23)/100-'RECAP SHEET '!N91 -> 0
D92: 0 | E92: 0 | F92: 0 | G92: 0 | I92: 0 | K92: 0 | L92: 0 | M92: 0 | N92: 0 | O92: =H92*('JMF1'!$I$22+'JMF1'!$I$23)/100-'RECAP SHEET '!N92 -> 0
D93: 0 | E93: 0 | F93: 0 | G93: 0 | I93: 0 | K93: 0 | L93: 0 | M93: 0 | N93: 0 | O93: =H93*('JMF1'!$I$22+'JMF1'!$I$23)/100-'RECAP SHEET '!N93 -> 0
D94: 0 | E94: 0 | F94: 0 | G94: 0 | I94: 0 | K94: 0 | L94: 0 | M94: 0 | N94: 0 | O94: =H94*('JMF1'!$I$22+'JMF1'!$I$23)/100-'RECAP SHEET '!N94 -> 0
D95: 0 | E95: 0 | F95: 0 | G95: 0 | I95: 0 | K95: 0 | L95: 0 | M95: 0 | N95: 0 | O95: =H95*('JMF1'!$I$22+'JMF1'!$I$23)/100-'RECAP SHEET '!N95 -> 0
D96: 0 | E96: 0 | F96: 0 | G96: 0 | I96: 0 | K96: 0 | L96: 0 | M96: 0 | N96: 0 | O96: =H96*('JMF1'!$I$22+'JMF1'!$I$23)/100-'RECAP SHEET '!N96 -> 0
D97: 0 | E97: 0 | F97: 0 | G97: 0 | I97: 0 | K97: 0 | L97: 0 | M97: 0 | N97: 0 | O97: =H97*('JMF1'!$I$22+'JMF1'!$I$23)/100-'RECAP SHEET '!N97 -> 0
D98: 0 | E98: 0 | F98: 0 | G98: 0 | I98: 0 | K98: 0 | L98: 0 | M98: 0 | N98: 0 | O98: =H98*('JMF1'!$I$22+'JMF1'!$I$23)/100-'RECAP SHEET '!N98 -> 0
D99: 0 | E99: 0 | F99: 0 | G99: 0 | I99: 0 | K99: 0 | L99: 0 | M99: 0 | N99: 0 | O99: =H99*('JMF1'!$I$22+'JMF1'!$I$23)/100-'RECAP SHEET '!N99 -> 0
D100: 0 | E100: 0 | F100: 0 | G100: 0 | I100: 0 | K100: 0 | L100: 0 | M100: 0 | N100: 0 | O100: =H100*('JMF1'!$I$22+'JMF1'!$I$23)/100-'RECAP SHEET '!N100 -> 0
A102: Totals from page 1, 2, 3, 4 | E102: =SUM(D86:D100)+E77 -> 2279.1417 | G102: =SUM(F86:F100)+G77 -> 171.5483 | I102: =SUM(H86:H100)+I77 -> 2450.69 | K102: =SUM(J86:J100)+K77 -> 17.3 | M102: =SUM(L86:L100)+M77 -> 171.5483

Sheet Mix Control Chart
A1: SCREEN | B1: MIX CONTROL CHARTS
A2: 3/4" or 3/8" | B2: Upper Limit | C2: =C3+5.7 -> 71.7 | D2: =C2 -> 71.7 | E2: =D2 -> 71.7 | F2: 71.7 | G2: 71.7 | H2: 71.7 | I2: 71.7 | J2: 71.7 | K2: 71.7 | L2: 71.7 | M2: 71.7
B3: JMF | C3: 66 | D3: =C3 -> 66 | E3: 66 | F3: 66 | G3: 66 | H3: 66 | I3: 66 | J3: 66 | K3: 66 | L3: 66 | M3: 66
B4: Lower Limit | C4: =C3-5.7 -> 60.3 | D4: =C4 -> 60.3 | E4: 60.3 | F4: 60.3 | G4: 60.3 | H4: 60.3 | I4: 60.3 | J4: 60.3 | K4: 60.3 | L4: 60.3 | M4: 60.3
B5: DATE
B6: Contractor (QC) | D6: 66 | E6: 69 | F6: 65
B7: State (QA) | D7: 60 | E7: 62 | F7: 61
A8: #4 | B8: Upper Limit | C8: =C9+4 -> 44 | D8: =C8 -> 44 | E8: =D8 -> 44 | F8: 44 | G8: 44 | H8: 44 | I8: 44 | J8: 44 | K8: 44 | L8: 44 | M8: 44
B9: JMF | C9: 40 | D9: =C9 -> 40 | E9: 40 | F9: 40 | G9: 40 | H9: 40 | I9: 40 | J9: 40 | K9: 40 | L9: 40 | M9: 40
B10: Lower Limit | C10: =C9-4 -> 36 | D10: =C10 -> 36 | E10: 36 | F10: 36 | G10: 36 | H10: 36 | I10: 36 | J10: 36 | K10: 36 | L10: 36 | M10: 36
B11: DATE
B12: Contractor (QC) | D12: 48 | E12: 42 | F12: 46 | G12: 43
B13: State (QA) | D13: 41 | E13: 43 | F13: 44 | G13: 46
A14: #30 | B14: Upper Limit | C14: =C15+3.3 -> 31.3 | D14: =C14 -> 31.3 | E14: =D14 -> 31.3 | F14: 31.3 | G14: 31.3 | H14: 31.3 | I14: 31.3 | J14: 31.3 | K14: 31.3 | L14: 31.3 | M14: 31.3
B15: JMF | C15: 28 | D15: =C15 -> 28 | E15: 28 | F15: 28 | G15: 28 | H15: 28 | I15: 28 | J15: 28 | K15: 28 | L15: 28 | M15: 28
B16: Lower Limit | C16: =C15-3.3 -> 24.7 | D16: =C16 -> 24.7 | E16: 24.7 | F16: 24.7 | G16: 24.7 | H16: 24.7 | I16: 24.7 | J16: 24.7 | K16: 24.7 | L16: 24.7 | M16: 24.7
B17: DATE | D17: 2008-10-01
B18: Contractor (QC) | D18: 30 | E18: 32 | F18: 32 | G18: 34
B19: State (QA) | D19: 30 | E19: 29 | F19: 30 | G19: 31
A20: #200 | B20: Upper Limit | C20: =C21+1.6 -> 6.6 | D20: =C20 -> 6.6 | E20: =D20 -> 6.6 | F20: 6.6 | G20: 6.6 | H20: 6.6 | I20: 6.6 | J20: 6.6 | K20: 6.6 | L20: 6.6 | M20: 6.6
B21: JMF | C21: 5 | D21: =C21 -> 5 | E21: 5 | F21: 5 | G21: 5 | H21: 5 | I21: 5 | J21: 5 | K21: 5 | L21: 5 | M21: 5
B22: Lower Limit | C22: =C21-1.6 -> 3.4 | D22: =C22 -> 3.4 | E22: 3.4 | F22: 3.4 | G22: 3.4 | H22: 3.4 | I22: 3.4 | J22: 3.4 | K22: 3.4 | L22: 3.4 | M22: 3.4
B23: DATE
B24: Contractor (QC) | D24: 4.5 | E24: 3.1 | F24: 5.3
B25: State (QA) | D25: 3.5 | E25: 4 | F25: 6.5
A26: AC% | B26: Upper Limit | C26: =C27+0.35 -> 5.65 | D26: =C26 -> 5.65 | E26: =D26 -> 5.65 | F26: 5.65 | G26: 5.65 | H26: 5.65 | I26: 5.65 | J26: 5.65 | K26: 5.65 | L26: 5.65 | M26: 5.65
B27: JMF | C27: 5.3 | D27: =C27 -> 5.3 | E27: 5.3 | F27: 5.3 | G27: 5.3 | H27: 5.3 | I27: 5.3 | J27: 5.3 | K27: 5.3 | L27: 5.3 | M27: 5.3
B28: Lower Limit | C28: =C27-0.35 -> 4.95 | D28: =C28 -> 4.95 | E28: 4.95 | F28: 4.95 | G28: 4.95 | H28: 4.95 | I28: 4.95 | J28: 4.95 | K28: 4.95 | L28: 4.95 | M28: 4.95
B29: DATE
B30: Contractor (QC) | D30: 5 | E30: 4.8 | F30: 4.6 | G30: 4.9 | H30: 5
B31: State (QA) | E31: 4.6 | F31: 4.7 | G31: 4.8 | H31: 4.5

Sheet HMA Producers
A1: PRODUCERS | E1: =VLOOKUP(G1,A2:F141,6) -> 0 | G1: 2
A2: 1
A3: 2
A4: 3 | B4: 1 | C4: 1 | F4: ASR Systems Tri-Cities, Bristol | G4: 18200022
A5: 4 | B5: 1 | C5: 1 | F5: ATS Consturction - Williamsburg KY | G5: 59900109
A6: 5 | B6: 1 | C6: 1 | F6: B & F Hot Mix - Asphalt Mix | G6: 11300001
A7: 6 | B7: 1 | C7: 1 | F7: Blalock Asphalt - Kodak Asphalt Mix | G7: 17800001
A8: 7 | B8: 1 | C8: 1 | F8: Blalock Asphalt - Sevierville Asphalt Mix | G8: 17800002
A9: 8 | B9: 1 | C9: 1 | F9: CAPS Asphalt | G9: 18600003
A10: 9 | B10: 1 | C10: 1 | F10: Duracap Asphalt Paving - Bean Station Asphalt Mix | G10: 12900004
A11: 10 | B11: 1 | C11: 1 | F11: Duracap Asphalt Paving - Heiskell Asphalt Mix | G11: 14700015
A12: 11 | B12: 1 | C12: 1 | F12: Duracap Asphalt Paving - Knoxville Asphalt Mix | G12: 14700014
A13: 12 | B13: 1 | C13: 1 | F13: Elmo Greer & Sons - Williamsburg KY Asp Mix | G13: 59900109
A14: 13 | B14: 1 | C14: 1 | F14: Greenback Asphalt /Patty Construction- Asphalt Mix | G14: 15300003
A15: 14 | B15: 1 | C15: 1 | F15: Greene County Highway Dept - Asphalt Mix | G15: 13000008
A16: 15 | B16: 1 | C16: 1 | F16: Harrison Construction - Heiskell Asphalt Mix | G16: 14700007
A17: 16 | B17: 1 | C17: 1 | F17: Harrison Construction - Jefferson City Asphalt Mix | G17: 14500003
A18: 17 | B18: 1 | C18: 1 | F18: Harrison Construction - Knox Cinder Asphalt Mix | G18: 14700008
A19: 18 | B19: 1 | C19: 1 | F19: Harrison Construction - Knox Everett Asphalt Mix | G19: 14700010
A20: 19 | B20: 1 | C20: 1 | F20: Harrison Construction - Maryville Asphalt Mix | G20: 10500001
A21: 20 | B21: 1 | C21: 1 | F21: Harrison Construction - Mascot Asphalt Mix | G21: 14700011
A22: 21 | B22: 1 | C22: 1 | F22: Harrison Construction - Maynardville Asphalt Mix | G22: 18700001
A23: 22 | B23: 1 | C23: 1 | F23: Harrison Construction - Morristown Asphalt Mix | G23: 13200001
A24: 23 | B24: 1 | C24: 1 | F24: Harrison Construction - Rogersville Asphalt Mix | G24: 13700010
A25: 24 | B25: 1 | C25: 1 | F25: Harrison Construction - Spring Hill Asphalt Mix | G25: 14700042
A26: 25 | B26: 1 | C26: 1 | F26: Hinkle Contracting - Middlesboro KY Asphalt Mix | G26: 59900010
A27: 26 | B27: 1 | C27: 1 | F27: Jefferson Co Hwy Dept - Jefferson City Asphalt Mix | G27: 14500007
A28: 27 | B28: 1 | C28: 1 | F28: Maymead - Mountain City Asphalt Mix | G28: 14600003
A29: 28 | B29: 1 | C29: 1 | F29: Miller & Sons Paving - Oneida Asphalt Mix | G29: 17600001
A30: 29 | B30: 1 | C30: 1 | F30: Newport Paving - Newport Asphalt Mix | G30: 11500001
A31: 30 | B31: 1 | C31: 1 | F31: Potters Southeast - Pioneer | G31: 10700007
A32: 31 | B32: 1 | C32: 1 | F32: Rogers Group - Harriman Quarry Rd Asphalt Mix | G32: 17300005
A33: 32 | B33: 1 | C33: 1 | F33: Rogers Group - Jacksboro Towe String Rd Asp Mix | G33: 10700006
A34: 33 | B34: 1 | C34: 1 | F34: Rogers Group - Knoxville Candora Ave Asphalt Mix | G34: 14700031
A35: 34 | B35: 1 | C35: 1 | F35: Rogers Group - Madisonville Asphalt Mix | G35: 16200006
A36: 35 | B36: 1 | C36: 1 | F36: Rogers Group - Oak Ridge Asphalt Mix | G36: 10100005
A37: 36 | B37: 1 | C37: 1 | F37: Rogers Group - Sweetwater Asphalt Mix | G37: 16200001
A38: 37 | B38: 1 | C38: 1 | F38: Rogers Group - Tazewell Asphalt Mix | G38: 11300004
A39: 38 | B39: 1 | C39: 1 | F39: Summers Taylor - Blountville Drum Plant Asp Mix | G39: 18200010
A40: 39 | B40: 1 | C40: 1 | F40: Summers Taylor - Greeneville Asphalt Mix | G40: 13000002
A41: 40 | B41: 1 | C41: 1 | F41: Summers Taylor - Watauga Asphalt Mix | G41: 11000002
A42: 41 | B42: 2 | C42: 1 | F42: W & L Construction - Abington VA Asphalt Mix | G42: 59900110
A43: 42 | B43: 2 | C43: 1 | F43: W & L Construction - Kingsport Asphalt Mix | G43: 18200017
A44: 43 | B44: 2 | C44: 1 | F44: Washington County Highway Dept | G44: 19000010
A45: 44 | B45: 2 | C45: 1 | F45: Willis Paving Inc - Tazewell Asphalt Mix | G45: 11300006
A46: 45 | B46: 2 | C46: 1 | F46: Central Asphalt - Cleveland Asphalt Mix | G46: 20600002
A47: 46 | B47: 2 | C47: 1 | F47: Copeland DRP LLC - Cookeville Asphalt Mix | G47: 27100016
A48: 47 | B48: 2 | C48: 1 | F48: Dunlap Stone - Dunlap Asphalt Mix | G48: 27700004
A49: 48 | B49: 2 | C49: 1 | F49: Dunlap Stone - Pikeville Asphalt Mix | G49: 20400003
A50: 49 | B50: 2 | C50: 1 | F50: Harrison Construction - Hayesville NC Asphalt Mix | G50: 59900168
A51: 50 | B51: 2 | C51: 1 | F51: Hiwassee Paving - Chattanooga Asphalt Mix | G51: 23300003
A52: 51 | B52: 2 | C52: 1 | F52: Hiwassee Paving LLC - Calhoun Asphalt Mix | G52: 25400007
A53: 52 | B53: 2 | C53: 1 | F53: Rogers Group - Allgood Asphalt Mix | G53: 27100005
A54: 53 | B54: 2 | C54: 1 | F54: Rogers Group - Cookeville Asphalt Mix LAB ONLY | G54: 27100006
A55: 54 | B55: 2 | C55: 1 | F55: Rogers Group - Cowan Asphalt Mix | G55: 22600004
A56: 55 | B56: 2 | C56: 1 | F56: Rogers Group - Crab Orchard Asphalt Mix | G56: 21800007
A57: 56 | B57: 2 | C57: 1 | F57: Rogers Group - Dayton Asphalt Mix | G57: 27200002
A58: 57 | B58: 2 | C58: 1 | F58: Rogers Group - Hillsboro Asphalt Mix | G58: 21600004
A59: 58 | B59: 2 | C59: 1 | F59: Rogers Group - Livingston Asphalt Mix | G59: 26700001
A60: 59 | B60: 2 | C60: 1 | F60: Rogers Group - McMinnville Asphalt Mix | G60: 28900007
A61: 60 | B61: 2 | C61: 1 | F61: Rogers Group - Pall Mall Asphalt Mix | G61: 22500003
A62: 61 | B62: 2 | C62: 1 | F62: Rogers Group - Sparta Asphalt Mix | G62: 29300001
A63: 62 | B63: 2 | C63: 1 | F63: Southeastern Mtls - Chattanooga Asphalt Mix | G63: 23300001
A64: 63 | B64: 2 | C64: 1 | F64: Southeastern Mtls - Cleveland Asphalt Mix | G64: 20600006
A65: 64 | F65: Southeastern Mtls - Tiftonia Asphalt Mix | G65: 23300012
A66: 65 | F66: Tinsley Asphalt - Decherd Asphalt Mix | G66: 22600008
A67: 66 | F67: Tinsley Asphalt - McMinnville Asphalt Mix | G67: 28900005
A68: 67 | B68: 3 | C68: 1 | F68: Tinsley Asphalt - South Pittsburg Asphalt Mix | G68: 25800004
A69: 68 | B69: 3 | C69: 1 | F69: Vulcan - Cookeville Asphalt Mix | G69: 27100008
A70: 69 | B70: 3 | C70: 1 | F70: Charles Deweese Const - Franklin Aphalt Mix | G70: 59900204
A71: 70 | B71: 3 | C71: 1 | F71: Eubank Asphalt - Clarksville Asphalt Mix | G71: 36300013
A72: 71 | B72: 3 | C72: 1 | F72: Eubank Asphalt - Dickson Plants 1-3 Asphalt Mix | G72: 32200002
A73: 72 | B73: 3 | C73: 1 | F73: Fairview Asphalt Products Inc - Asphalt Mix | G73: 39400001
A74: 73 | B74: 3 | C74: 1 | F74: Hawkins Asphalt Paving - Shelbyville Asphalt Mix | G74: 30200008
A75: 74 | B75: 3 | C75: 1 | F75: Hoover - Murfreesboro Asphalt Mix | G75: 37500003
A76: 75 | B76: 3 | C76: 1 | F76: Hoover - Old Hickory Asphalt Mix | G76: 31900061
A77: 76 | B77: 3 | C77: 1 | F77: Hoover - Plant A Lebanon Asphalt Mix | G77: 39500016
A78: 77 | B78: 3 | C78: 1 | F78: Hoover - Plant B Lebanon Asphalt Mix | G78: 39500001
A79: 78 | B79: 3 | C79: 1 | F79: Hoover - Smyrna Asphalt Mix | G79: 37500004
A80: 79 | B80: 3 | C80: 1 | F80: Jones Bros Contractors - Clarksville Asphalt Mix | G80: 36300004
A81: 80 | B81: 3 | C81: 1 | F81: Jones Bros Contractors - Nashville Asphalt Mix | G81: 31900009
A82: 81 | B82: 3 | C82: 1 | F82: Lincoln Paving Co - Fayetteville | G82: 35200003
A83: 82 | B83: 3 | C83: 1 | F83: Lincoln Paving Co - Lewisburg | G83: 35900003
A84: 83 | B84: 3 | C84: 1 | F84: Lincoln Paving Co - Lynchburg | G84: 36400001
A85: 84 | B85: 3 | C85: 1 | F85: Marathon Ashland - Nashville Liquid Asphalt | G85: 31900025
A86: 85 | B86: 3 | C86: 1 | F86: Maury Co Asphalt - Columbia | G86: 36000008
A87: 86 | B87: 3 | C87: 1 | F87: McIntosh Asphalt Co | G87: 36300009
A88: 87 | B88: 3 | C88: 1 | F88: Rogers Group - Columbia Asphalt Mix | G88: 36000009
A89: 88 | B89: 3 | C89: 1 | F89: Rogers Group - Cross Plains Rockhouse Rd Asphalt | G89: 37400010
A90: 89 | B90: 3 | C90: 1 | F90: Rogers Group - Gallatin Asphalt Mix | G90: 38300012
A91: 90 | B91: 3 | C91: 1 | F91: Rogers Group - Hopkinsville Kentucky Asphalt | G91: 59900046
A92: 91 | B92: 3 | C92: 1 | F92: Rogers Group - Lawrenceburg Asphalt Mix | G92: 35000003
A93: 92 | B93: 3 | C93: 1 | F93: Rogers Group - Nashville Asphalt Mix | G93: 31900036
A94: 93 | B94: 3 | C94: 1 | F94: Rogers Group - Pottsville Asphalt Mix | G94: 35900007
A95: 94 | B95: 3 | C95: 1 | F95: Rogers Group - Pulaski Bethel Rd Asphalt Mix | G95: 32800008
A96: 95 | B96: 3 | C96: 1 | F96: Scotty's Asphalt Co | G96: 59900047
A97: 96 | B97: 3 | C97: 1 | F97: Tennessee Calley Asphalt - Fairview | G97: 39400001
A98: 97 | B98: 3 | C98: 1 | F98: Volunteer Materials - Lewisburg Asp Mix | G98: 35900008
A99: 98 | B99: 3 | C99: 1 | F99: Vulcan - City Plant | G99: 31900023
A100: 99 | B100: 3 | C100: 1 | F100: Vulcan - Columbia | G100: 36000006
A101: 100 | B101: 3 | C101: 1 | F101: Vulcan - Danley | G101: 31900021
A102: 101 | B102: 3 | C102: 1 | F102: Vulcan - Franklin | G102: 39400002
A103: 102 | B103: 3 | C103: 2 | F103: Vulcan - Gordonsville | G103: 38000002
A104: 103 | B104: 3 | C104: 1 | F104: Vulcan - Hermitage | G104: 31900022
A105: 104 | B105: 3 | C105: 1 | F105: Vulcan - Lebanon Asphalt | G105: 39500006
A106: 105 | B106: 3 | C106: 1 | F106: Vulcan - Murfreesboro | G106: 37500007
A107: 106 | F107: Vulcan - Nashville River Rd | G107: 31900024
A108: 107 | F108: Vulcan - Springfield | G108: 37400005
A109: 108 | B109: 4 | C109: 1 | F109: Wright Paving Co - Pottsville | G109: 35900005
A110: 109 | B110: 4 | C110: 1 | F110: Wright Paving Co - Shelbyville | G110: 30200006
A111: 110 | B111: 4 | C111: 1 | F111: APAC - Glen Mississippi Asphalt Mix | G111: 59900054
A112: 111 | B112: 4 | C112: 1 | F112: APAC - Memphis Harbour Ave Asphalt Mix | G112: 47900004
A113: 112 | B113: 4 | C113: 1 | F113: APAC - Memphis Tuggle Rd Asphalt Mix | G113: 47900005
A114: 113 | B114: 4 | C114: 1 | F114: Arrow Paving Inc - Lexington Asphalt Mix | G114: 43900001
A115: 114 | B115: 4 | C115: 1 | F115: Delta Contracting - Holladay Asphalt Mix | G115: 40300002
A116: 115 | B116: 4 | C116: 1 | F116: Delta Contracting - Humboldt Asphalt Mix | G116: 42700001
A117: 116 | B117: 4 | C117: 1 | F117: Delta Contracting - Jackson Asphalt Mix | G117: 45700017
A118: 117 | B118: 4 | C118: 1 | F118: Delta Contracting - Parsons Asphalt Mix | G118: 42000001
A119: 118 | B119: 4 | C119: 1 | F119: Delta Contracting - Savannah Asphalt Mix | G119: 43600002
A120: 119 | B120: 4 | C120: 1 | F120: Delta Contracting- Paris Asphalt Mix | G120: 44000004
A121: 120 | B121: 4 | C121: 1 | F121: Ford Construction - Dresden Asphalt Mix | G121: 49200002
A122: 121 | B122: 4 | C122: 1 | F122: Ford Construction - Dyersburg Asphalt Mix | G122: 42300004
A123: 122 | B123: 4 | C123: 1 | F123: Ford Construction - Jackson Asphalt Mix | G123: 45700006
A124: 123 | B124: 4 | C124: 1 | F124: Ford Construction - Troy Asphalt Mix | G124: 46600004
A125: 124 | B125: 4 | C125: 1 | F125: Frank Climer and Sons - Munford Asphalt Mix | G125: 48400003
A126: 125 | B126: 4 | C126: 1 | F126: J Hamm Asphalt - Crump Asphalt Mix | G126: 43600009
A127: 126 | B127: 4 | C127: 1 | F127: Lehman Roberts - Arlington Asphalt Mix | G127: 47900012
A128: 127 | B128: 4 | C128: 1 | F128: Lehman Roberts - Memphis Carrier Asphalt Mix | G128: 47900014
A129: 128 | B129: 4 | C129: 1 | F129: Martin Paving - Medina Asphalt Mix | G129: 42700002
A130: 129 | B130: 4 | C130: 1 | F130: Standard Construction - Collierville Asphalt Mix | G130: 47900052
A131: 130 | B131: 4 | C131: 1 | F131: Standard Construction - Cordova Asphalt Mix | G131: 47900042
A132: 131 | B132: 4 | C132: 1 | F132: Standard Construction - Stantonville Asphalt Mix | G132: 45500005
A133: 132 | B133: 4 | C133: 1 | F133: Standard Construction - Whiteville Asphalt Mix | G133: 43500002
A134: 133 | B134: 4 | C134: 1
A135: 134 | B135: 4 | C135: 1
A136: 135 | B136: 4 | C136: 1
A137: 136 | B137: 4 | C137: 1
A138: 137 | B138: 4 | C138: 1
A139: 138 | B139: 4 | C139: 1
A140: 139 | B140: 4 | C140: 1
A141: 140 | B141: 4 | C141: 1
A142: 141 | B142: 4 | C142: 1
A143: 142 | B143: 4 | C143: 1
A144: 143
A145: 144

Sheet Terminals (hidden)
A1: TERMINALS | D1: =VLOOKUP(F1,A3:F24,6) -> 0 | F1: 1
A3: 1
A4: 2 | B4: 1 | C4: 3 | D4: BRISTOL ASPHALT PRODUCTS | E4: BRISTOL | F4: =D4&", "&E4 -> BRISTOL ASPHALT PRODUCTS, BRISTOL
A5: 3 | B5: 1 | C5: 3 | D5: MARATHON ASHLAND | E5: KNOXVILLE | F5: =D5&", "&E5 -> MARATHON ASHLAND, KNOXVILLE
A6: 4 | B6: 1 | C6: 3 | D6: ConocoPhillips(Vol) ASPHALT | E6: KNOXVILLE | F6: =D6&", "&E6 -> ConocoPhillips(Vol) ASPHALT, KNOXVILLE
A7: 5 | B7: 1 | C7: 3 | D7: VULCAN MATERIALS | E7: KNOXVILLE | F7: =D7&", "&E7 -> VULCAN MATERIALS, KNOXVILLE
A8: 6
A9: 7 | B9: 2 | C9: 3 | D9: MARATHON PETROLEUM | E9: CHATTANOOGA TERMINAL | F9: =D9&", "&E9 -> MARATHON PETROLEUM, CHATTANOOGA TERMINAL
A10: 8 | B10: 2 | C10: 3 | D10: Conoco/Phillips | E10: CHATTANOOGA TERMINAL | F10: =D10&", "&E10 -> Conoco/Phillips, CHATTANOOGA TERMINAL
A11: 9 | B11: 2 | C11: 3 | D11: HUDSON MATERIALS | E11: CHATTANOOGA TERMINAL | F11: =D11&", "&E11 -> HUDSON MATERIALS, CHATTANOOGA TERMINAL
A12: 10
A13: 11 | B13: 3 | C13: 3 | D13: ERGON ASPHALT CO. | E13: NASHVILLE TERMINAL | F13: =D13&", "&E13 -> ERGON ASPHALT CO., NASHVILLE TERMINAL
A14: 12 | B14: 3 | C14: 3 | D14: MARATHON ASHLAND PETROLEUM, LLC | E14: NASHVILLE TERMINAL | F14: =D14&", "&E14 -> MARATHON ASHLAND PETROLEUM, LLC, NASHVILLE TERMINAL
A15: 13 | B15: 3 | C15: 3 | D15: HUNT REFINING | E15: DECATUR, AL | F15: =D15&", "&E15 -> HUNT REFINING, DECATUR, AL
A16: 14
A17: 15 | B17: 4 | C17: 3 | D17: ERGON ASPHALT & EMULSIONS | E17: MEMPHIS, TN | F17: =D17&", "&E17 -> ERGON ASPHALT & EMULSIONS, MEMPHIS, TN
A18: 16 | B18: 4 | C18: 3 | D18: ERGON INC | E18: TISHOMINGO, MS | F18: ERGON INC, TISHOMINGO, MS
A19: 17 | B19: 4 | C19: 3 | D19: SEM MATERIALS | E19: PARSONS, TN | F19: SEM MATERIALS, PARSONS, TN
A20: 18 | B20: 4 | C20: 3 | D20: SEM MATERIALS | E20: MEMPHIS, TN | F20: SEM MATERIALS, MEMPHIS, TN
A21: 19 | B21: 4 | C21: 3 | D21: MARATHON ASHLAND PETRO LLC(EMUL) | E21: MEMPHIS, TN | F21: MARATHON ASHLAND PETRO LLC(EMUL), MEMPHIS, TN
A22: 20 | B22: 4 | C22: 3 | D22: MARATHON ASHLAND PETRO LLC(AC) | E22: CATAWA | F22: MARATHON ASHLAND PETRO LLC(AC), CATAWA
A23: 21 | B23: 4 | C23: 3 | D23: MARATHON ASHLAND PETRO LLC(AC) | E23: MEMPHIS, TN | F23: MARATHON ASHLAND PETRO LLC(AC), MEMPHIS, TN
A24: 22

Sheet Tack Coat
A1: Tack Coat Field Verification
A3: If Emulsified Asphalt Tack Coat is more than one week old (as measured from the date the material left the terminal) and has been stored in a tanker or distributor, conduct a sieve and residue by evaporation test at the asphalt mix plant. Failing results are grounds to reject any remaining material in the distributor or tanker.
A8: Tack Coat Emulsion Classification
A11: SIEVE TEST
A12: See AASHTO T-59 part 13 for details
A13: 1. Record weightof number 20 sieve and Pan (Dry)
A14: 2. Remove Pan, and pour 1000 g of emulsion through 20 sieve
A15: 3. Wash sieve with distilled water (or sodium oleate solution as noted in T-59) until water leaving sieve is clear
A16: 4. Replace pan under sieve and place sieve/pan assembly in 325 F oven for 2 hours
A17: 5. Determine weightof sieve, pan and residue
A20: Wt of Sieve+Pan Dry | C20: grams
A21: Sample | C21: grams | D21: (1000 g min)
A22: Wt of Sieve+Pan+Residue | C22: grams
A24: % Retained | B24: =(B22-B20)/B21*100 ->  | C24: % | D24: (max 0.3% for project samples)
A27: RESIDUE by EVAPORATION
A28: See AASHTO T-59 part 7 for details
A29: 1. Record weight of each of four beaker, glass rod, and screen combinations (Tare)
A30: 2. Pour 50 g (+/- 0.1 g) into each of four beakers
A31: 3. Place Beaker (containing the emulsion, beaker and rod) into an oven at 325 F for 2 Hours
A32: 4. Remove Beakers, stir thoroughly and replace beaker (w/ emulsion, rod and screen) in oven for an additional 1 H
A33: 5. Remove, allow to cool, record weight of each combination of beaker (containing rod, screen and residue)
B35: sample 1 | C35: sample 2 | D35: sample 3 | E35: sample 4
A36: Wt of Beaker, Rod, Screen Tare | F36: grams
A37: Wt of Beaker, Rod, Screen, Residue | F37: grams
A39: Residue | B39: =2*(B37-B36) -> 0 | C39: =2*(C37-C36) -> 0 | D39: 0 | E39: 0
A40: Average Residue | B40: =AVERAGE(B39:E39) -> 0
A42: Minimum Residue for Emulsion Type: | B42: =B8 -> 0 | C42: =VLOOKUP(B42,Sheet1!B2:C13,2,0) ->  | D42: %
A44: Validation | B44: =B40-C42 ->  | C44: =IF(B44<0,"FAIL","PASS") -> 

Sheet Sheet1 (hidden)
B2: CQS-1H | C2: 62
B3: CQS-1HP | C3: 62
B4: CRS-1 HM | C4: 55
B5: CSS-1 | C5: 57
B6: CSS-1H | C6: 57
B7: eTac-H | C7: 50
B8: NTCRS-1hSP | C8: 50
B9: NTSS-1HM | C9: 50
B10: SS-1 | C10: 57
B11: SS-1H | C11: 57
B12: SS-1VH | C12: 50
B13: TST-1P | C13: 55
